Workbook

Sheet 0_Facility_id
B1: Security Survey for Health Care Facilities
B2: Facility Identification Sheet
C4: Write you answer below as free text
B5: Facility name
B6: Date of the assessment
B7: Assessor name
B8: Location of facility
B9: Region/Province/ District
B10: If ICRC supported, what is the recipient place (ask your GIS officer in case of doubt)
B11: Type of facility (i.e. Health centre, maternal clinic, national referal hospital, etc.)
B12: Managing authority (public, private, Government, NGO supported etc.)
B13: Is the facility in urban or rural environment?
B14: Is your facility offering inpatient beds or is outpatient only?
B15: If inpatient how many beds?
B16: Total number of personnel in hospital during an average day
B17: On average for how many hours is your facility opened for per day?

Sheet 1_Survey
B1: Security Survey for Health Care Facilities
B2: Survey Form
B4: Indicator | F4: Answer (click on drop down menu) | G4: Observations
B6: Hazards
B7: 1.1.1 Heavy weapons Likelihood ratings: Zero – No chance of hazard occurring in this situation and nothing reported. Low - Unlikely to happen; no nearby or past events to consider, even if the use of heavy weapons was reported. Average - Proximity of potential military targets and hotspots. Reported use of heavy weaponry in the nearby area and/or in the past and there is a chance this may happen again. High - Where the use of heavy weaponry is reported in nearby areas or in recent past events and there is a strong likelihood there could be the use of heavy weaponry which could affect the facility. Or, currently in a conflict and the use of heavy weapon is reported.
B8: 1.1.2 Intrusions and attacks Likelihood ratings: Zero –No chance of occurring in this situation and nothing reported. Low -Unlikely to happen-no nearby or past events reported or that should be considered. Average - Reported use of small arms in the nearby area and/or in the past and there is a chance of this happening here. High - Where such events have been reported in nearby areas or in recent past events and there is a strong likelihood there could be the use of small weapons again. Or, currently facing this issue.
B9: 1.1.3 Mass influx of persons Likelihood ratings: Zero – No chance of occurring and nothing reported. Low - Unlikely to happen and no nearby or past events reported or that should be considered. Average – Events reported in the past or in nearby areas and current events show this may be something the facility will experience. High - Where such events have been reported in nearby areas or in recent past events and there is a strong likelihood there could be another influx of people into the facility. Or, currently facing this issue.
B10: External Exposure
B11: 1.2.1. Conditions of External Infrastructure Likelihood ratings: N/A – Not applicable to this situation (the health care facility is completely self-sufficient and does not rely on external infrastructure for daily operations to continue). Low - Basic services (power, water, and others) provided to the facility frequently shut down and their quality is below acceptable standards (I.e. water is not used by local for drinking purpose). Reparations are erratic and not reliable. Average - Basic services are reliable and do not breakdown often but in case of crisis, such response is not so reliable. Quality of some services may be questionable. (I.e. water is not used by locals for drinking purposes). Basic response when services are disrupted. High - The basic provision of services is continuous and of good quality. In case of breakdown reparations are provided in reasonable time and interruption of the service are pre-emptively communicated.
B12: Confidence Evaluation
B13: 1.3.1 Confidence in hazard identification Confidence ratings: Low - Information is limited in quantity and quality, with very few reliable sources and little or no corroboration. Average - Information is based on a couple of sources, is generally felt to be accurate and there is some corroboration across sources. High - Information is of high quality, obtained from several reliable sources and is generally corroborated or is the current situation.
B14: Safety & Security
B15: 2.1.1 Risk Assessment Preparedness rating: Zero-No risk assessment and contingency plan. Low - Risk assessment and/or contingency plan developed partially but are not comprehensive. Average - Both assessment and contingency plan developed and personnel have been trained but no resources (financial and human) dedicated for full implementation and no regular updates (not reviewed or maintained). High - Full risk assessment conducted and fed into a comprehensive contingency plan. Personnel trained, resources dedicated for the implementation and regular reviews carried out.
B16: 2.1.2 Identification of facility Preparedness rating: Zero-No signs of identification. Low- Some signs of identification displayed, more signage is acknowledged and required. Average- Some signs of identification displayed and geographic coordinates shared with some parties to a conflict but not all. High- Visible signs of identification displayed and geolocation shared with all parties to a conflict. N/A-Not applicable to this situation (Where there are strong reasons not to identify a healthcare facility, then this indicator is not applicable).
B17: 2.1.3 "No weapons" policy Preparedness rating: Zero-No signs displayed. Low - "No weapons" signs displayed. Average -"No weapons" signs displayed and staff trained on how to apply this policy and what to do in difficult circumstances. High - "No weapons" signs displayed, staff trained and the policy communicated to and explained to all parties to a conflict and other relevant local actors. N/A-Not applicable to this situation.
B18: 2.1.4 Perception Review Preparedness rating: Zero- No communication. Low – Sporadic dialogue with the local community. No communication with parties to a conflict. Average – Some communication with some parties to a conflict and local community but not all stakeholders. High – Systematic and continuous communication with all parties to a conflict and a local community. N/A-Not applicable to this situation (Where there are strong reasons not to communicate with parties to a conflict, local authorities or communities or to conduct the perception review, this indicator is not applicable).
B19: 2.1.5 Fire Protection Preparedness rating: Zero- no measures in place. Low-There are some fire extinguishers/hydrants, but their maintenance is not systematically monitored and there is no overall fire protection and evacuation plans. No or little contact with firefighters and no drills are performed. Average- Some measures implemented based on a fire protection and evacuation plan. E.g. Fire extinguishers/hydrants and smoke detectors may be installed but they are infrequently maintained. Risk areas are identified. No drills or training for staff. No communication with fire department. High-The facility has appropriate fire control plans and measures in place and staff are trained. There are also fire detection mechanisms in place which are inspected regularly. There are good communication with local firefighters and they are aware of the layout of the health care facility.
B20: 2.1.6 Security monitoring Preparedness rating: Zero- No monitoring system in place. Low - Some monitoring takes place, but covers a small percentage of the facility. Average - There is a monitoring process including how to report incidents, in place but lack of resources means they cannot be monitored for the needed times. High - Systematic monitoring of the facility for the duration that is necessary. Staff have been trained and clear incident reporting procedures are in place.
B21: Media
B22: 2.2.1 Media Strategy Preparedness rating: Zero- No media strategy exists. Low- Basic media procedures exist but spokesperson has not been nominated and limited contact with media. Average-Media strategy exists, spokesperson has been assigned but no training. High-Media strategy exists, qualified spokesperson assigned and all staff informed of the procedures. Active measures implemented to fully engage stakeholders. N/A-Not applicable to this situation (When engaging with the media is impossible or compromises the security of the facility, this indicator is not applicable.)
B23: Patients and relatives
B24: 2.3.1 Accomodating needs of patient's relatives Preparedness rating: Zero-There is no consideration for patient’s relatives’. Low-Very limited space for relatives. Staff are not trained to deal with them. Continued incidents of assault (verbal, physical) against health care personnel reported. Average-Limited space exists for relatives; toilets, cleaning area and a possibility to acquire food have been accounted for. Incidents of assault (verbal, physical) against health care personnel have been reported. High-Appropriate space dedicated for relatives including toilets, cleaning area and a possibility to acquire food have been accounted for. Incidents of assault (verbal, physical) against health care personnel reported and staff are trained with how to deal with relatives of patients. N/A-Not applicable to this situation (In a health care facility where no prolonged stay of patients and their relatives is required or possible, this indicator is not applicable.)
B25: 2.3.2 Management of patient information Preparedness rating: Zero-No procedures to deal with patient’s information and personnel not trained. Low-Limited procedures to deal with patients’ information established but personnel haven’t been trained. Emergency situations have not been addressed. Average - Procedures to deal with patients’ information established (including in emergency situations), personnel have been informed. No backup system in place. High-Comprehensive procedures to deal with patients’ information established, systematic training of personnel and backup system in place.
B26: Staff and equipment
B27: 2.4.1 Surge capacity of personnel and equipment Preparedness rating: Zero- No plans concerning surge capacity. Low-Limited procedures exist but staff are not informed and lack of resources. Average-Procedures exist and personnel have been trained but there are no adequate resources (HR, equipment) to scale up the capacity during emergencies. High-Procedures exist, personnel have been trained and there is enough staff to meet anticipated needs in an emergency. Records of extra equipment are available and up to date, and special arrangements in terms of logistics are also secured.
B28: 2.4.2 Stocks of medicines and instruments Preparedness rating: Zero-No overview of what medicines or quantity are needed or what is currently available in the facility. Low-An overview of currently available medicines exists but there is no procedures to monitor and secure the availability of crucial medicines and medical instruments in times of an emergency. Staff are not informed nor trained. Average-there is a system in place that identifies and monitors the quantity of essential medical items that should always be available. There are assigned and trained persons to identify when there is a fall in stock. Stocks or other supplies will not count for more than 72 hours in an emergency. High-There is a system in place that identifies the crucial items that should always be available. There are trained persons to identify when there is a fall in stock and how to proceed to order more items. A facility counts with a stock of essential medical items that would allow it to operate beyond 72 hours (either by keeping stock of more items or by having identifying reliable suppliers).
B29: 2.4.3 Storage of supplies Preparedness rating: Zero-Currently no storage capacity. Low-Limited storage capacity available but no measure to secure it. Average-Storage facilities exist to enable availability of essential medical items and other supplies during emergencies and some measures in place to secure them. High- Storage facilities exist to enable availability of essential medical items and other supplies during emergencies and measures in place to secure them against unauthorised entry. The storage facilities are monitored and properly maintained. Personnel trained accordingly. Supplies are strategically placed to ensure that they are accessible to the relevant persons at all times. N/A-Not applicable to this situation (Where extra storage of supplies is not necessary to maintain the daily operations of the health care facility, or when the health care facility is located within the supply chain, then this indicator is not necessary)
B30: Relocation
B31: 2.5.1 Suitability of relocation Preparedness rating: Zero-No assessment of the new location is carried out and no plan for potential relocation developed. Low-Limited assessment of a new location conducted but no risk mitigation in place nor a systematic preparation of the relocation. Average-Assessment of the new location carried out and plan for a relocation developed. High-Comprehensive assessment of a new location carried out, including a risk mitigation strategy when moving and the availability of essential infrastructure. Relocation plan developed based on the assessment of which medical services will be prioritised. Logistical arrangements in place. N/A-Not applicable to this situation (Where a health care facility will never be in a position to relocate within the hazards presented (due to its function, other nearby facilities, etc.) or if the facility can close without help other facilities then this indicator is not applicable)
B32: 2.5.2 Evacuation to new place Preparedness ratings: Zero-No evacuation procedures in place. Low-plan exists but only as a document. Average-plan exists, and personnel have been informed but no drills are conducted. There are limited resources to help facilitate the movement. High-Plan exists, personnel have been trained and evacuation drills have been held. Resources to help relocate have been identified and located. N/A-Not applicable to this situation (Where a health care facility will never be in a position to relocate within the hazards presented (due to its function, other nearby facilities etc.) and therefore no need to physically relocate, then this indicator is not applicable)
B33: Access
B34: 2.6.1 Access route Preparedness rating:Low-there is only one route to and from the health care facility. Average-there are alternative access routes that have been identified. High-there are alternative routes identified and are included in assessments and planning. The quality of such routes have been accounted for. Where appropriate, local authorities have been approached to discuss the use of these routes.
B35: 2.6.2. Access of health care personnel and ambulances Preparedness rating: Zero-No specific procedures to facilitate access of health care personnel and medical transport. Low-Procedures for access of staff and medical transport implemented only on an ad hoc basis. Average-Special procedures for access of staff and medical transport in place. High-Special procedures for access of staff in place and separate entrance available. Personnel have been informed and trained. Identification and other necessary measures introduced. N/A-Not applicable to this situation (Where health care facilities do not need specific or alternative routes to the facility (i.e. the facility doesn’t have ambulances etc.) due to the small size and function of the facility, then this indicator is not applicable.)
B36: 2.6.3 Secure supplier resources Preparedness ratings: Zero-Reliance on an unreliable supplier and no measures in place in mitigate the risks. Low- No special procedures for emergency situation and only one supplier. Average- Reliance on a supplier but alternatives identified and procedures to use those supplies have been drafted. High-Reliance on multiple suppliers and comprehensive emergency plan for continued supply in emergencies set up with relevant actors (e.g. suppliers, relevant authorities, humanitarian organizations etc.).
B37: Managing access and control
B38: 3.1.1 Saftey of internal and external lighting system Preparedness rating: Zero-There is no lighting. Low - Internal and external lighting systems are in poor condition as they aren’t reliable and there are no protective measures. Average – Lighting is in fair condition as it is normally reliable and provides the light needed; some measures provide partial protection. High – Lighting system is in good condition, reliable and provides adequate lighting. Measures in place to secure it. Sufficient stock of necessary spare parts and back up plans are in place.
B39: 3.1.2 Preparedness of perimeter fence Preparedness ratings: Zero - No fence/ perimeter wall. Low - Existing fence/perimeter wall is partially damaged or encompasses only part of a facility, impeding the facility’s daily operations. Average – Existing fence/perimeter encompasses entire compound where needed. The fence is not completely efficient due to partial damage or insufficient height. High - A good quality perimeter wall or fence exists, and is in a good condition as the material and height are sufficient for its purpose. The fence is regularly maintained and any damages are fixed in a timely manner. N/A-Not applicable to this situation (where health care facility does not need a perimeter fence because of its location or function, or when the facility is within another facility and the fence is not needed, then this indicator is not relevant.)
B40: 3.1.3 Preparedness of gates and entrances Preparedness ratings: Zero - No security screening infrastructure at entrances i.e. no barriers. Low - The existing barriers are in poor condition as they do not function properly and therefore limited security screening carried out. Average – Barriers to entry are in good condition and normally reliable but are not suitable for large influx of people. High – Gates and entrances in good and reliable conditions and maintained regularly. Systematic security screening carried out by trained staff. Emergency procedures and available so that the infrastructure in place can manage massive influx of people during emergencies. N/A-Not applicable to this situation (Where the health care facility does not require specific screening procedures due to its location or otherwise, this indicator is not relevant.)
B41: Structure
B42: 3.2.1 Condition of the building Preparedness ratings: Zero-No maintenance i.e. multiple holes in the building, dampness and broken parts due to severe weathering. Low - Quite extensive signs of deterioration registered: cracks on some of the walls, dampness etc. Limited maintenance carried out. Average - Some deterioration caused only by potential weathering. Internally, the building is generally well maintained. Maintenance carried out. High - No deterioration or cracks observed. Exterior has not been affected by weathering and in a good condition internally. Systematic maintenance carried out.
B43: 3.2.2 Structural integrity Preparedness ratings: Low - Poor structural system: cracks on the ground and first floors, construction materials with flaking, cracks larger than 3mm (concrete) excessive deformations (steel and wood). Average - Moderate structural system design. Some damage to building and only partially repaired; presence of cracks between 1 and 3 mm (concrete), moderate and visible deformations (steel and wood) or rust with no flaking. High - Good structural system design. Minor or no damage and building fully repaired if damage exists; cracks less than 1 mm (concrete), no visible deformations, no rust
B44: 3.2.3 Material Preparedness ratings: Low - Weak construction materials such as wood, bamboo, tarpaulins, tents etc. Average - Buildings constructed with resistant materials such as concrete and masonry. High - Robust construction materials such as masonry and reinforced concrete with fire considerations incorporated in. Roof is strong and thick enough to ensure stray bullets (if known) do not penetrate the roof.
B45: 3.2.4 Passive security measures Preparedness level: Zero- Safe areas not identified. Low – Safe areas identified but are not suitable or adequate for the facility. Average – Safe areas identified and staff are trained. However limited equipment so procedures for how they should be used and when are limited. High – Safe areas identified and fitted into a facility with all the necessary equipment and infrastructure (e.g. ventilation etc.). Staff trained and procedures in place specifying the use of these areas. N/A-Not applicable to this situation (Where the facility is only one unit and only has space for this and is too small, or such need is irrelevant to the context of the facility, then this indicator is not applicable.)
B46: Layout
B47: 3.3.1 Distribution of critical areas Preparedness levels: Zero- Critical areas are not identified so no protective measures in place. Low- Critical areas identified but no protective measures in place. Average - Limited measures in place to protect critical areas (e.g. security fencing or locked doors) but scarce or no staff vigilance over these areas. High- Comprehensive measures in place to secure critical areas (e.g. existence of a specific fencing or secured doors to access these areas, existence of monitoring system is in place etc.). These areas are situated in the core or the building, not easily accessible through windows or outside doors.
B48: 3.3.2 Facility layout: spread vs concentrated Preparedness rating: Spread- Services are broken into smaller, single story, separate buildings within the plot. Medium Concentration - Large, low-rise buildings, with a medium density of equipment and users per ground floor area. Concentrated- All the services (healthcare and supportive services) are concentrated in a single (multi story) building. Large scale buildings with a high concentration of equipment and people.
B49: 3.3.3 Existence of free space Preparedness ratings: Zero - No free space available. Low - Space for expansion has not been planned for specifically but potentially some areas could be used for this purpose. Average - Space has been identified and it is enough to allow a significant extension of the activities. High - Space is identified, and it is big enough to accommodate a surface equivalent of the existing number of beds. Overview of what resources and equipment is readily available. Procedures exist and have been tested, personnel have been trained, and equipment, supplies and other resources are available to carry out the expansion of space. N/A-Not applicable to this situation (Where the health care facility does not require additional space to continue daily operations in case of an emergency, then this indicator is not applicable.)
B50: 3.3.4 Location of Valuable assets Preparedness rating: Zero-no considerations given to valuable assets. Low - Not all valuable assets are identified and limited measures in place to protect some of valuable assets. Average - Valuable assets are stored in places where there are some measures to provide partial protection. High - Valuable assets are stored in locked rooms, and in areas within the facility that have higher levels of protection in case of partial destruction of the facility. N/A-Not applicable to this situation (Where the health care facility only consist of one asset or has no valuable asset but the one unit that it is, then this indicator is not relevant.)
B51: Exposure
B52: 3.4.1 Opening: Windows Preparedness ratings: Zero - Broken or no windows-(e.g. just holes in the wall). Low - Windows in poor condition, the frames are made of weak material and can be easily damaged. There are no protection measures. Average - Windows in fair condition, is working properly and not easily damaged. The material, hinges and security measures of the windows have been considered and some of been implemented for protection reasons. High - Windows in good condition, is not damaged and working properly. The material, hinges and comprehensive security measures for the windows are in place. Exterior windows are either laminated or have grids (where possible or appropriate). Extra measures in place in critical areas.
B53: 3.4.2 Opening:doors Preparedness ratings: Zero -There are no doors (just open space). Low - Doors are in poor condition as they are damaged, made of weak material and do not function properly. Average - Most doors in fair condition; the doors of critical areas or rooms are of good quality material and have good handles/locks. All doors are functioning properly. High - All doors are in good condition, made of good material and security procedures in place to enhance the protection from unauthorised entries. Critical areas are given extra attention and more security measures.
B54: 3.4.3 Exposure of the building Preparedness ratings: Zero-all critical areas are exposed to risks. Low - Most façades and windows are completely exposed and facing an open exterior area. Average - Most façades and windows facing exterior areas are partly covered or protected (by annexed buildings, blinders, etc.). High - Most parts of the facility (especially the critical areas) are not exposed from the exterior or special security measures are in place to protect all openings facing the exterior. (For example low-rise buildings protected by high walls, or existence of inner courtyards where most of the ward windows are facing).
B55: 3.4.4 Standoff distance Preparedness ratings: Zero - TThe main walls surrounding a facility are directly exposed onto the outside. Low - Limited (<10m) distance between the closest building and the perimeter of the facility. Average - There is 30m standoff distance but no or light fence. High - Standoff distance is more than 30m and the perimeter consist of a solid wall (e.g.: masonry or concrete wall). N/A-Not applicable to this situation (Where the health care facility is located within other facilities, or when the facility is small and there is no need for a standoff distance for the facility in question then this indicator is not relevant.)
B56: 3.4.5 Protection of potential hazard area Preparedness rating: Zero--No consideration for critical areas. Low –Critical areas are identified and limited protective measures implemented. Average-Critical areas have been identified and protection measures are in place but are limited (due to lack of resources). Monitoring for critical assets in place. High –Critical areas are properly secured. Procedures to deal with emergencies included in the overall contingency plan of a health care facility. N/A-Not applicable to this situation (Where health care facilities consist of only one specific asset, or have no risk areas, then this indicator is not relevant.)
B57: Internal circulation
B58: 3.5.1 Safety of movement Preparedness ratings: Zero - Corridors and circulation spaces do not exist but are needed. Low - Corridors are narrow and there are obstacles which makes access and movement difficult. Access into different rooms is hampered for wheelchair access or stretches. Average - Corridors and circulation areas are cleared from physical obstacles. There are clear and visible signs around and within the health care facility including unauthorised areas. Most areas within a facility do not have more than one route to access. High - Corridors are at least two stretches wide and do not have any physical obstacles hindering the movement. There are clear and visible signs around and within a health care facility, including unauthorised areas. N/A-Not applicable to this situation (Where there are no corridors or a need for patients or staff to move around the facility, or when the facility is small and just made of a room then this indicator is not relevant)
B59: 3.5.2 Safety of stairways Preparedness ratings: Zero - Stairs cannot be used due to damage or physical obstacles. Low - Stairs are damaged or prone to damage and no maintenance is conducted. Physical obstacles hamper movement. Average - All stairways are equipped with railings and the stairways are generally in good condition. They are not inspected or maintained regularly. High - The stairs are not damaged and are wide enough for the needs of the facility. Stairs are fitted with railings. There are no obstacles in the way. Stairs in areas of highly concentrated persons are inspected regularly. N/A-Not applicable to this situation (Where the health care facility does not have stairs, this indicator is not relevant.)
B60: 3.5.3 Safety of elevator system Preparedness ratings: Zero-Elevators are not functioning. Low - Elevators are damaged and their functioning is unstable. Average - Elevators are functioning and they are maintained regularly. High - Elevators are functioning well. They are maintained regularly and measures are in place to protect from any potential damage. Personnel informed about the limitations of their use during emergencies. N/A - Not applicable in this situation (Where health care facility does not have elevators, this indicator is not relevant.)
B61: 3.5.4 Evacuation route Preparedness ratings: Zero- No exit and evacuation routes available. Low - Exit and evacuation routes are not clearly marked and are blocked. Average - Some exit and evacuation routes are marked and most of them are clear of physical obstacles. High-Exit and evacuation routes clearly marked and free from physical obstacles. Personnel are aware of the routes. Drills and training are conducted frequently.
B62: Self sufficiency
B63: 3.6.1 Safety of telecommunication systemy Preparedness rating: Zero- No communication system. Low-Communication equipment is in poor condition as it is not reliable and has no protective measures. There are no alternative communication system or it does not work. Average-Communication equipment is in fair condition with limited protective measures. Communication system is generally reliable. Limited back-up system in place but personnel are not trained. High-Communication equipment is in good condition, is regularly maintained and protective measures are in place. A back-up communication system is in place and maintained regularly. Staff are informed and well-trained.
B64: 3.6.2 Safety of water supply Preparedness rating: Zero-No water supply. Low-Water infrastructure is in poor state and/or poorly maintained. It may provide storage capacity of less than a day (use 50-80 litre/bed*day as reference). Water quality is less than local average. Average- Current infrastructure is in good condition and regularly maintained. There is storage capacity between 1 and 3 days. Water quality is similar to local standards. High-Current infrastructure is in good condition and regularly maintained. Water meets recognised standards of quality. An alternative backup infrastructure is able to provide at least 3 days of water demand, to all critical areas. Plans for rationalization of the consumption exist and the relative infrastructure is in place.
B65: 3.6.3 Safety of electrical equipment Preparedness rating: Zero- The existing electrical network is severely deficient. Low-Power supply is not stable. The internal electrical network is in poor conditions and prone to accidents (switchboards in bad state and not protected, cables and main connections exposed). There is no back-up system for power and generator is in poor condition (if generator is available). Average-The overall conditions of the network is acceptable and works well under normal conditions. The main elements are protected (switchboards, connections, transformers, etc.) Alternative sources are not fully stable but will cover the minimum needs of the critical areas and automatically come on. Generators are in fair condition, protected and occasionally tested. High- Main network elements are well protected (buried cables, locked boxes for switch board, etc.). The network is documented and plans of maintenance exist. Back-up systems exist will be activated automatically in case of emergencies; it is well maintained and will allow the continuity of services Generators function without any disruptions and are protected and tested frequently.
B66: 3.6.4 Safety of medical waste disposal Preparedness rating: Zero- There is currently inadequate disposal of medical waste with no backup plan. Low-The current infrastructure is acceptable for current situation but there are no backup plans to dispose of medical waste. Average-The current infrastructure is in good condition. There is a backup plan but resources are limited to implement it and staff are not trained. High-Current infrastructure is in good condition. There is a functioning backup plan to dispose of medical waste and personnel are trained on regular and emergency procedures.
B67: 3.6.5 Safety of sewage disposal Preparedness rating: Zero-Current wastewater management is not adequately managed for the facility. Low-Current system is in an acceptable condition but no backup plans to dispose of wastewater safely. Average-The current infrastructure is in good condition and is secured. There is no backup plan, but current system can handle an increase in capacity. Personnel are partially trained in case of emergency situation. High-The current infrastructure is in good condition and is secured. There is a backup plan to dispose of wastewater and personnel are trained. The back-up infrastructure is in place and well maintained. N/A-Not applicable to this situation (Where a health care facility is within another facility that manages sewage disposal, or the facility does not produce wastewater then this indicator is not relevant).
B68: 3.6.6. Safety of storage and evacuation of corpses Preparedness rating: Zero- Regular process of dead bodies’ disposal does not meet the demands of the facility. Low-Procedures for dealing with mass-casualty incidents does not exist or exists only as a document. Average-A system for mass-casualty incidents are set up but resources are insufficient to ensure it can function adequately. High-Procedures and system for mass-casualty incidents exist and there are sufficient resources to implement it. Personnel have been trained. N/A-Not applicable to this situation (Where management of corpses are not part of the daily operations of the facility, then this indicator is not relevant.

Sheet 2_Dashboard
B1: Security Survey for Health Care Facilities
B2: Results Dashboard | J2: Facility: | K2: =IF(ISBLANK(id_name),"",id_name) ->  | X2: version: 161004
E8: =IF('4_DataSlave'!$AK$51>0.5,'4_DataSlave'!$AK$51,0) -> 
E11: =IF(AND('4_DataSlave'!$AK$51>=0.35,'4_DataSlave'!$AK$51<=0.5),'4_DataSlave'!$AK$51,0) -> 
E14: =IF('4_DataSlave'!$AK$51<0.35,'4_DataSlave'!$AK$51,0) -> 
U25: =IF(AND('4_DataSlave'!$V$6=1,SUM('4_DataSlave'!$V$2:$V$4)>=6),"High",0) -> 0 | V25: =IF(AND('4_DataSlave'!$V$6=2,SUM('4_DataSlave'!$V$2:$V$4)>=6),"High",0) -> 0 | W25: =IF(AND('4_DataSlave'!$V$6=3,SUM('4_DataSlave'!$V$2:$V$4)>=6),"High",0) -> 0
U26: =IF(AND('4_DataSlave'!$V$6=1,SUM('4_DataSlave'!$V$2:$V$4)<6),IF(SUM('4_DataSlave'!$V$2:$V$4)>=2,"High",0),0) -> 0 | V26: =IF(AND('4_DataSlave'!$V$6=2,SUM('4_DataSlave'!$V$2:$V$4)<6),IF(SUM('4_DataSlave'!$V$2:$V$4)>=2,"Average",0),0) -> 0 | W26: =IF(AND('4_DataSlave'!$V$6=3,SUM('4_DataSlave'!$V$2:$V$4)<6),IF(SUM('4_DataSlave'!$V$2:$V$4)>=2,"Average",0),0) -> 0
U27: =IF(AND('4_DataSlave'!$V$6=1,SUM('4_DataSlave'!$V$2:$V$4)<2),"Low",0) -> 0 | V27: =IF(AND('4_DataSlave'!$V$6=2,SUM('4_DataSlave'!$V$2:$V$4)<2),"Low",0) -> 0 | W27: =IF(AND('4_DataSlave'!$V$6=3,SUM('4_DataSlave'!$V$2:$V$4)<2),"Low",0) -> 0
AO33: Time | AP33: Inner | AQ33: 66 | AR33: 33 | AS33: 0 | AT33: Outer | AV33: Legend | AX33: Achievable | AY33: actual | AZ33: Charted
AO34: ='4_DataSlave'!E8 -> Contingency | AP34: =IF($AZ34=1,1,0) -> 0 | AQ34: =IF(AND($AZ34<1,$AZ34>=0.65),2,0) -> 0 | AR34: =IF(AND($AZ34<0.65,$AZ34>=0.32),3,0) -> 0 | AS34: =IF(AND($AZ34<0.32,$AZ34>=0),4,0) -> 4 | AT34: =IF($AZ34<0,5,0) -> 0 | AV34: 1 | AX34: ='4_DataSlave'!AC8 ->  | AY34: ='4_DataSlave'!AK8 ->  | AZ34: =IFERROR(AY34/AX34,0) -> 0
AO35: ='4_DataSlave'!E9 -> Identification | AP35: 0 | AQ35: 0 | AR35: 0 | AS35: =IF(AND($AZ35<0.32,$AZ35>=0),4,0) -> 4 | AT35: 0 | AV35: 2 | AX35: ='4_DataSlave'!AC9 ->  | AY35: ='4_DataSlave'!AK9 ->  | AZ35: 0
AO36: ='4_DataSlave'!E10 -> No_weapons | AP36: 0 | AQ36: 0 | AR36: 0 | AS36: 4 | AT36: 0 | AV36: 3 | AX36: ='4_DataSlave'!AC10 ->  | AY36: ='4_DataSlave'!AK10 ->  | AZ36: 0
AO37: ='4_DataSlave'!E11 -> Perception | AP37: 0 | AQ37: 0 | AR37: 0 | AS37: 4 | AT37: 0 | AV37: 4 | AX37: ='4_DataSlave'!AC11 ->  | AY37: ='4_DataSlave'!AK11 ->  | AZ37: 0
AO38: ='4_DataSlave'!E12 -> Fire | AP38: 0 | AQ38: 0 | AR38: 0 | AS38: 4 | AT38: 0 | AV38: 5 | AX38: ='4_DataSlave'!AC12 ->  | AY38: ='4_DataSlave'!AK12 ->  | AZ38: 0
AO39: ='4_DataSlave'!E13 -> Security | AP39: 0 | AQ39: 0 | AR39: 0 | AS39: 4 | AT39: 0 | AX39: ='4_DataSlave'!AC13 ->  | AY39: ='4_DataSlave'!AK13 ->  | AZ39: 0
AO40: ='4_DataSlave'!E14 -> Media | AP40: 0 | AQ40: 0 | AR40: 0 | AS40: 4 | AT40: 0 | AX40: ='4_DataSlave'!AC14 ->  | AY40: ='4_DataSlave'!AK14 ->  | AZ40: 0
AO41: ='4_DataSlave'!E15 -> Relatives | AP41: 0 | AQ41: 0 | AR41: 0 | AS41: 4 | AT41: 0 | AX41: ='4_DataSlave'!AC15 ->  | AY41: ='4_DataSlave'!AK15 ->  | AZ41: 0
AO42: ='4_DataSlave'!E16 -> Records | AP42: 0 | AQ42: 0 | AR42: 0 | AS42: 4 | AT42: 0 | AX42: ='4_DataSlave'!AC16 ->  | AY42: ='4_DataSlave'!AK16 ->  | AZ42: 0
AO43: ='4_DataSlave'!E17 -> Surge | AP43: 0 | AQ43: 0 | AR43: 0 | AS43: 4 | AT43: 0 | AX43: ='4_DataSlave'!AC17 ->  | AY43: ='4_DataSlave'!AK17 ->  | AZ43: 0
AO44: ='4_DataSlave'!E18 -> MedStock | AP44: 0 | AQ44: 0 | AR44: 0 | AS44: 4 | AT44: 0 | AX44: ='4_DataSlave'!AC18 ->  | AY44: ='4_DataSlave'!AK18 ->  | AZ44: 0
AO45: ='4_DataSlave'!E19 -> Storage | AP45: 0 | AQ45: 0 | AR45: 0 | AS45: 4 | AT45: 0 | AX45: ='4_DataSlave'!AC19 ->  | AY45: ='4_DataSlave'!AK19 ->  | AZ45: 0
AO46: ='4_DataSlave'!E20 -> Relocation | AP46: 0 | AQ46: 0 | AR46: 0 | AS46: 4 | AT46: 0 | AX46: ='4_DataSlave'!AC20 ->  | AY46: ='4_DataSlave'!AK20 ->  | AZ46: 0
AO47: ='4_DataSlave'!E21 -> Reloc_Plan | AP47: 0 | AQ47: 0 | AR47: 0 | AS47: 4 | AT47: 0 | AX47: ='4_DataSlave'!AC21 ->  | AY47: ='4_DataSlave'!AK21 ->  | AZ47: 0
AO48: ='4_DataSlave'!E22 -> Access | AP48: 0 | AQ48: 0 | AR48: 0 | AS48: 4 | AT48: 0 | AX48: ='4_DataSlave'!AC22 ->  | AY48: ='4_DataSlave'!AK22 ->  | AZ48: 0
AO49: ='4_DataSlave'!E23 -> Ambulances | AP49: 0 | AQ49: 0 | AR49: 0 | AS49: 4 | AT49: 0 | AX49: ='4_DataSlave'!AC23 ->  | AY49: ='4_DataSlave'!AK23 ->  | AZ49: 0
AO50: ='4_DataSlave'!E24 -> Supplier | AP50: 0 | AQ50: 0 | AR50: 0 | AS50: 4 | AT50: 0 | AX50: ='4_DataSlave'!AC24 ->  | AY50: ='4_DataSlave'!AK24 ->  | AZ50: 0
AO51: ='4_DataSlave'!E25 -> Lighting | AP51: 0 | AQ51: 0 | AR51: 0 | AS51: 4 | AT51: 0 | AX51: ='4_DataSlave'!AC25 ->  | AY51: ='4_DataSlave'!AK25 ->  | AZ51: 0
AO52: ='4_DataSlave'!E26 -> Fence | AP52: 0 | AQ52: 0 | AR52: 0 | AS52: 4 | AT52: 0 | AX52: ='4_DataSlave'!AC26 ->  | AY52: ='4_DataSlave'!AK26 ->  | AZ52: 0
AO53: ='4_DataSlave'!E27 -> Gates | AP53: 0 | AQ53: 0 | AR53: 0 | AS53: 4 | AT53: 0 | AX53: ='4_DataSlave'!AC27 ->  | AY53: ='4_DataSlave'!AK27 ->  | AZ53: 0
AO54: ='4_DataSlave'!E28 -> Condition | AP54: 0 | AQ54: 0 | AR54: 0 | AS54: 4 | AT54: 0 | AX54: ='4_DataSlave'!AC28 ->  | AY54: ='4_DataSlave'!AK28 ->  | AZ54: 0
AO55: ='4_DataSlave'!E29 -> Integrity | AP55: 0 | AQ55: 0 | AR55: 0 | AS55: 4 | AT55: 0 | AX55: ='4_DataSlave'!AC29 ->  | AY55: ='4_DataSlave'!AK29 ->  | AZ55: 0
AO56: ='4_DataSlave'!E30 -> Material | AP56: 0 | AQ56: 0 | AR56: 0 | AS56: 4 | AT56: 0 | AX56: ='4_DataSlave'!AC30 ->  | AY56: ='4_DataSlave'!AK30 ->  | AZ56: 0
AO57: ='4_DataSlave'!E31 -> Passive_Sec | AP57: 0 | AQ57: 0 | AR57: 0 | AS57: 4 | AT57: 0 | AX57: ='4_DataSlave'!AC31 ->  | AY57: ='4_DataSlave'!AK31 ->  | AZ57: 0
AO58: ='4_DataSlave'!E32 -> Priority areas | AP58: 0 | AQ58: 0 | AR58: 0 | AS58: 4 | AT58: 0 | AX58: ='4_DataSlave'!AC32 ->  | AY58: ='4_DataSlave'!AK32 ->  | AZ58: 0
AO59: ='4_DataSlave'!E33 -> Layout | AP59: 0 | AQ59: 0 | AR59: 0 | AS59: 4 | AT59: 0 | AX59: ='4_DataSlave'!AC33 ->  | AY59: ='4_DataSlave'!AK33 ->  | AZ59: 0
AO60: ='4_DataSlave'!E34 -> Free space | AP60: 0 | AQ60: 0 | AR60: 0 | AS60: 4 | AT60: 0 | AX60: ='4_DataSlave'!AC34 ->  | AY60: ='4_DataSlave'!AK34 ->  | AZ60: 0
AO61: ='4_DataSlave'!E35 -> Valuable assets | AP61: 0 | AQ61: 0 | AR61: 0 | AS61: 4 | AT61: 0 | AX61: ='4_DataSlave'!AC35 ->  | AY61: ='4_DataSlave'!AK35 ->  | AZ61: 0
AO62: ='4_DataSlave'!E36 -> Windows | AP62: 0 | AQ62: 0 | AR62: 0 | AS62: 4 | AT62: 0 | AX62: ='4_DataSlave'!AC36 ->  | AY62: ='4_DataSlave'!AK36 ->  | AZ62: 0
AO63: ='4_DataSlave'!E37 -> Doors | AP63: 0 | AQ63: 0 | AR63: 0 | AS63: 4 | AT63: 0 | AX63: ='4_DataSlave'!AC37 ->  | AY63: ='4_DataSlave'!AK37 ->  | AZ63: 0
AO64: ='4_DataSlave'!E38 -> Exposure | AP64: 0 | AQ64: 0 | AR64: 0 | AS64: 4 | AT64: 0 | AX64: ='4_DataSlave'!AC38 ->  | AY64: ='4_DataSlave'!AK38 ->  | AZ64: 0
AO65: ='4_DataSlave'!E39 -> Standoff | AP65: 0 | AQ65: 0 | AR65: 0 | AS65: 4 | AT65: 0 | AX65: ='4_DataSlave'!AC39 ->  | AY65: ='4_DataSlave'!AK39 ->  | AZ65: 0
AO66: ='4_DataSlave'!E40 -> Int_fence | AP66: 0 | AQ66: 0 | AR66: 0 | AS66: 4 | AT66: 0 | AX66: ='4_DataSlave'!AC40 ->  | AY66: ='4_DataSlave'!AK40 ->  | AZ66: 0
AO67: ='4_DataSlave'!E41 -> Movement | AP67: 0 | AQ67: 0 | AR67: 0 | AS67: 4 | AT67: 0 | AX67: ='4_DataSlave'!AC41 ->  | AY67: ='4_DataSlave'!AK41 ->  | AZ67: 0
AO68: ='4_DataSlave'!E42 -> Stairs | AP68: 0 | AQ68: 0 | AR68: 0 | AS68: 4 | AT68: 0 | AX68: ='4_DataSlave'!AC42 ->  | AY68: ='4_DataSlave'!AK42 ->  | AZ68: 0
AO69: ='4_DataSlave'!E43 -> Elevators | AP69: 0 | AQ69: 0 | AR69: 0 | AS69: 4 | AT69: 0 | AX69: ='4_DataSlave'!AC43 ->  | AY69: ='4_DataSlave'!AK43 ->  | AZ69: 0
AO70: ='4_DataSlave'!E44 -> Evacuation | AP70: 0 | AQ70: 0 | AR70: 0 | AS70: 4 | AT70: 0 | AX70: ='4_DataSlave'!AC44 ->  | AY70: ='4_DataSlave'!AK44 ->  | AZ70: 0
AO71: ='4_DataSlave'!E45 -> Telecom | AP71: 0 | AQ71: 0 | AR71: 0 | AS71: 4 | AT71: 0 | AX71: ='4_DataSlave'!AC45 ->  | AY71: ='4_DataSlave'!AK45 ->  | AZ71: 0
AO72: ='4_DataSlave'!E46 -> Water | AP72: 0 | AQ72: 0 | AR72: 0 | AS72: 4 | AT72: 0 | AX72: ='4_DataSlave'!AC46 ->  | AY72: ='4_DataSlave'!AK46 ->  | AZ72: 0
AO73: ='4_DataSlave'!E47 -> Electrical | AP73: 0 | AQ73: 0 | AR73: 0 | AS73: 4 | AT73: 0 | AX73: ='4_DataSlave'!AC47 ->  | AY73: ='4_DataSlave'!AK47 ->  | AZ73: 0
AO74: ='4_DataSlave'!E48 -> Med_waste | AP74: 0 | AQ74: 0 | AR74: 0 | AS74: 4 | AT74: 0 | AX74: ='4_DataSlave'!AC48 ->  | AY74: ='4_DataSlave'!AK48 ->  | AZ74: 0
AO75: ='4_DataSlave'!E49 -> Sewage | AP75: 0 | AQ75: 0 | AR75: 0 | AS75: 4 | AT75: 0 | AX75: ='4_DataSlave'!AC49 ->  | AY75: ='4_DataSlave'!AK49 ->  | AZ75: 0
AO76: ='4_DataSlave'!E50 -> Dead | AP76: 0 | AQ76: 0 | AR76: 0 | AS76: 4 | AT76: 0 | AX76: ='4_DataSlave'!AC50 ->  | AY76: ='4_DataSlave'!AK50 ->  | AZ76: 0
AO99: Time | AP99: Inner | AQ99: 66 | AR99: 33 | AS99: 0 | AT99: Outer
AO100: =AO34 -> Contingency | AP100: 1 | AQ100: 1 | AR100: 1 | AS100: 1 | AT100: 1
AO101: Identification | AP101: 1 | AQ101: 1 | AR101: 1 | AS101: 1 | AT101: 1
AO102: No_weapons | AP102: 1 | AQ102: 1 | AR102: 1 | AS102: 1 | AT102: 1
AO103: Perception | AP103: 1 | AQ103: 1 | AR103: 1 | AS103: 1 | AT103: 1
AO104: Fire | AP104: 1 | AQ104: 1 | AR104: 1 | AS104: 1 | AT104: 1
AO105: Security | AP105: 1 | AQ105: 1 | AR105: 1 | AS105: 1 | AT105: 1
AO106: Media | AP106: 1 | AQ106: 1 | AR106: 1 | AS106: 1 | AT106: 1
AO107: Relatives | AP107: 1 | AQ107: 1 | AR107: 1 | AS107: 1 | AT107: 1
AO108: Records | AP108: 1 | AQ108: 1 | AR108: 1 | AS108: 1 | AT108: 1
AO109: Surge | AP109: 1 | AQ109: 1 | AR109: 1 | AS109: 1 | AT109: 1
AO110: MedStock | AP110: 1 | AQ110: 1 | AR110: 1 | AS110: 1 | AT110: 1
AO111: Storage | AP111: 1 | AQ111: 1 | AR111: 1 | AS111: 1 | AT111: 1
AO112: Relocation | AP112: 1 | AQ112: 1 | AR112: 1 | AS112: 1 | AT112: 1
AO113: Reloc_Plan | AP113: 1 | AQ113: 1 | AR113: 1 | AS113: 1 | AT113: 1
AO114: Access | AP114: 1 | AQ114: 1 | AR114: 1 | AS114: 1 | AT114: 1
AO115: Ambulances | AP115: 1 | AQ115: 1 | AR115: 1 | AS115: 1 | AT115: 1
AO116: Supplier | AP116: 1 | AQ116: 1 | AR116: 1 | AS116: 1 | AT116: 1
AO117: Lighting | AP117: 1 | AQ117: 1 | AR117: 1 | AS117: 1 | AT117: 1
AO118: Fence | AP118: 1 | AQ118: 1 | AR118: 1 | AS118: 1 | AT118: 1
AO119: Gates | AP119: 1 | AQ119: 1 | AR119: 1 | AS119: 1 | AT119: 1
AO120: Condition | AP120: 1 | AQ120: 1 | AR120: 1 | AS120: 1 | AT120: 1
AO121: Integrity | AP121: 1 | AQ121: 1 | AR121: 1 | AS121: 1 | AT121: 1
AO122: Material | AP122: 1 | AQ122: 1 | AR122: 1 | AS122: 1 | AT122: 1
AO123: Passive_Sec | AP123: 1 | AQ123: 1 | AR123: 1 | AS123: 1 | AT123: 1
AO124: Priority areas | AP124: 1 | AQ124: 1 | AR124: 1 | AS124: 1 | AT124: 1
AO125: Layout | AP125: 1 | AQ125: 1 | AR125: 1 | AS125: 1 | AT125: 1
AO126: Free space | AP126: 1 | AQ126: 1 | AR126: 1 | AS126: 1 | AT126: 1
AO127: Valuable assets | AP127: 1 | AQ127: 1 | AR127: 1 | AS127: 1 | AT127: 1
AO128: Windows | AP128: 1 | AQ128: 1 | AR128: 1 | AS128: 1 | AT128: 1
AO129: Doors | AP129: 1 | AQ129: 1 | AR129: 1 | AS129: 1 | AT129: 1
AO130: Exposure | AP130: 1 | AQ130: 1 | AR130: 1 | AS130: 1 | AT130: 1
AO131: Standoff | AP131: 1 | AQ131: 1 | AR131: 1 | AS131: 1 | AT131: 1
AO132: Int_fence | AP132: 1 | AQ132: 1 | AR132: 1 | AS132: 1 | AT132: 1
AO133: Movement | AP133: 1 | AQ133: 1 | AR133: 1 | AS133: 1 | AT133: 1
AO134: Stairs | AP134: 1 | AQ134: 1 | AR134: 1 | AS134: 1 | AT134: 1
AO135: Elevators | AP135: 1 | AQ135: 1 | AR135: 1 | AS135: 1 | AT135: 1
AO136: Evacuation | AP136: 1 | AQ136: 1 | AR136: 1 | AS136: 1 | AT136: 1
AO137: Telecom | AP137: 1 | AQ137: 1 | AR137: 1 | AS137: 1 | AT137: 1
AO138: Water | AP138: 1 | AQ138: 1 | AR138: 1 | AS138: 1 | AT138: 1
AO139: Electrical | AP139: 1 | AQ139: 1 | AR139: 1 | AS139: 1 | AT139: 1
AO140: Med_waste | AP140: 1 | AQ140: 1 | AR140: 1 | AS140: 1 | AT140: 1
AO141: Sewage | AP141: 1 | AQ141: 1 | AR141: 1 | AS141: 1 | AT141: 1
AO142: Dead | AP142: 1 | AQ142: 1 | AR142: 1 | AS142: 1 | AT142: 1

Sheet 3_WeightingAssistent (hidden)
B2: DOMAIN | F2: IMPERATIVE | P2: Sceanrio 3 | T2: CATEGORY | X2: Scenario 1 | AB2: Scenario 2 | AF2: Scenario 3 | AH2: Item | AJ2: Scenario 1 | AO2: Scenario 2 | AW2: Scenario 3
B3: Name | D3: Score | F3: Name | H3: Scoring | J3: Score | L3: Scoring | N3: Weight | P3: Scoring | R3: Weight | T3: Name | V3: Scoring | X3: Score | Z3: Scoring | AB3: Weight | AD3: Scoring | AF3: Weight | AH3: Name | AI3: Code | AJ3: Direct | AK3: Scoring | AM3: Score | AO3: Direct | AP3: Scoring | AT3: Direction | AW3: Weight
AU4: Scoring
J5: 1 | N5: 1 | R5: 1 | X5: =MAX($J$6:$J$48) -> 0.7 | AB5: =MAX($J$6:$J$48) -> 0.7 | AF5: =MAX($J$6:$J$48) -> 0.7 | AM5: 0.2 | AR5: 0.2 | AW5: 0.2
B6: MANAGEMENT | D6: 0.3 | F6: PROCESS/PREPARDNESS | H6: 5 | J6: =$D$6*H$6/SUM(H$6:H$22) -> 0.125 | L6: 10 | N6: =$D$6*L$6/SUM(L$6:L$22) -> 0.25 | P6: 5 | R6: =$D$6*P$6/SUM(P$6:P$22) -> 0.15 | T6: Safety and security framework | V6: 1 | X6: =J$6*V6/SUM(V$6) -> 0.125 | Z6: 1 | AB6: =N$6*Z6/SUM(Z$6) -> 0.25 | AD6: 1 | AF6: =R$6*AD6/SUM(AD$6) -> 0.15 | AH6: ='4_DataSlave'!D8 -> Risk assessment & Contingency planning | AI6: ='4_DataSlave'!E8 -> Contingency | AJ6: + | AK6: 11 | AM6: =X$6*AK6/SUM(AK$6:AK$11) -> 0.05288461538 | AO6: + | AP6: 5 | AR6: =AB$6*AP6/SUM(AP$6:AP$11) -> 0.05208333333 | AT6: + | AU6: 10 | AW6: =AF$6*AU6/SUM(AU$6:AU$11) -> 0.05172413793
AH7: ='4_DataSlave'!D9 -> Identification | AI7: ='4_DataSlave'!E9 -> Identification | AJ7: + | AK7: 3 | AM7: 0.01442307692 | AO7: + | AP7: 2 | AR7: 0.02083333333 | AT7: + | AU7: 1 | AW7: 0.005172413793
AH8: ='4_DataSlave'!D10 -> "No weapons" policy | AI8: ='4_DataSlave'!E10 -> No_weapons | AJ8: + | AK8: 0 | AM8: 0 | AO8: + | AP8: 1 | AR8: 0.01041666667 | AT8: + | AU8: 2 | AW8: 0.01034482759
AH9: ='4_DataSlave'!D11 -> Perception review | AI9: ='4_DataSlave'!E11 -> Perception | AJ9: + | AK9: 1 | AM9: 0.004807692308 | AO9: + | AP9: 1 | AR9: 0.01041666667 | AT9: + | AU9: 2 | AW9: 0.01034482759
AH10: ='4_DataSlave'!D12 -> Fire protection system | AI10: ='4_DataSlave'!E12 -> Fire | AJ10: + | AK10: 10 | AM10: 0.04807692308 | AO10: + | AP10: 5 | AR10: 0.05208333333 | AT10: + | AU10: 10 | AW10: 0.05172413793
AH11: ='4_DataSlave'!D13 -> Monitoring of a HC facility HR guards | AI11: ='4_DataSlave'!E13 -> Security | AJ11: + | AK11: 1 | AM11: 0.004807692308 | AO11: + | AP11: 10 | AR11: 0.1041666667 | AT11: + | AU11: 4 | AW11: 0.02068965517
F12: PEOPLE | H12: 4 | J12: =$D$6*H$12/SUM(H$6:H$22) -> 0.1 | L12: 1 | N12: =$D$6*L$12/SUM(L$6:L$22) -> 0.025 | P12: 4 | R12: =$D$6*P$12/SUM(P$6:P$22) -> 0.12 | T12: Media | V12: 0.5 | X12: =J$12*V12/SUM(V$12:V$17) -> 0.007692307692 | Z12: 0.5 | AB12: =N$12*Z12/SUM(Z$12:Z$17) -> 0.005 | AD12: 0.5 | AF12: =R$12*AD12/SUM(AD$12:AD$17) -> 0.006315789474 | AH12: ='4_DataSlave'!D14 -> Media strategy | AI12: ='4_DataSlave'!E14 -> Media | AJ12: + | AK12: 1 | AM12: =$X$12*AK12/SUM($AK$12) -> 0.007692307692 | AO12: + | AP12: 1 | AR12: =$AB$12*AP12/SUM($AP$12) -> 0.005 | AT12: + | AU12: 1 | AW12: =$AF$12*AU12/SUM($AU$12) -> 0.006315789474
T13: Patients and relatives | V13: 2 | X13: =J$12*V13/SUM(V$12:V$17) -> 0.03076923077 | Z13: 1 | AB13: =N$12*Z13/SUM(Z$12:Z$17) -> 0.01 | AD13: 3 | AF13: =R$12*AD13/SUM(AD$12:AD$17) -> 0.03789473684 | AH13: ='4_DataSlave'!D15 -> Accomodating needs of patients' relatives | AI13: ='4_DataSlave'!E15 -> Relatives | AJ13: + | AK13: 1 | AM13: =$X$13*AK13/SUM($AK$13:$AK$14) -> 0.01538461538 | AO13: + | AP13: 1 | AR13: =$AB$13*AP13/SUM($AP$13:$AP$14) -> 0.005 | AT13: + | AU13: 1 | AW13: =$AF$13*AU13/SUM($AU$13:$AU$14) -> 0.01894736842
AH14: ='4_DataSlave'!D16 -> Protection of patients medical records | AI14: ='4_DataSlave'!E16 -> Records | AJ14: + | AK14: 1 | AM14: =$X$13*AK14/SUM($AK$13:$AK$14) -> 0.01538461538 | AO14: + | AP14: 1 | AR14: =$AB$13*AP14/SUM($AP$13:$AP$14) -> 0.005 | AT14: + | AU14: 1 | AW14: =$AF$13*AU14/SUM($AU$13:$AU$14) -> 0.01894736842
T15: Staff & Equipments | V15: 4 | X15: =J$12*V15/SUM(V$12:V$17) -> 0.06153846154 | Z15: 1 | AB15: =N$12*Z15/SUM(Z$12:Z$17) -> 0.01 | AD15: 6 | AF15: =R$12*AD15/SUM(AD$12:AD$17) -> 0.07578947368 | AH15: ='4_DataSlave'!D17 -> Surge capacity | AI15: ='4_DataSlave'!E17 -> Surge | AJ15: + | AK15: 1 | AM15: =$X$15*AK15/SUM($AK$15:$AK$17) -> 0.02051282051 | AO15: - | AP15: 1 | AR15: =$AB$15*AP15/SUM($AP$15:$AP$17) -> 0.003333333333 | AT15: + | AU15: 5 | AW15: =$AF$15*AU15/SUM($AU$15:$AU$17) -> 0.03444976077
AH16: ='4_DataSlave'!D18 -> Stock of medicines, instruments and other items | AI16: ='4_DataSlave'!E18 -> MedStock | AJ16: + | AK16: 1 | AM16: =$X$15*AK16/SUM($AK$15:$AK$17) -> 0.02051282051 | AO16: - | AP16: 1 | AR16: =$AB$15*AP16/SUM($AP$15:$AP$17) -> 0.003333333333 | AT16: + | AU16: 3 | AW16: =$AF$15*AU16/SUM($AU$15:$AU$17) -> 0.02066985646
AH17: ='4_DataSlave'!D19 -> Storage of supplies | AI17: ='4_DataSlave'!E19 -> Storage | AJ17: + | AK17: 1 | AM17: =$X$15*AK17/SUM($AK$15:$AK$17) -> 0.02051282051 | AO17: - | AP17: 1 | AR17: =$AB$15*AP17/SUM($AP$15:$AP$17) -> 0.003333333333 | AT17: + | AU17: 3 | AW17: =$AF$15*AU17/SUM($AU$15:$AU$17) -> 0.02066985646
F18: RELOCATION | H18: 1 | J18: =$D$6*H$18/SUM(H$6:H$22) -> 0.025 | L18: 0 | N18: =$D$6*L$18/SUM(L$6:L$22) -> 0 | P18: 0 | R18: =$D$6*P$18/SUM(P$6:P$22) -> 0 | T18: Re-Location | V18: 1 | X18: =J$18*V18/SUM(V$18) -> 0.025 | Z18: 0 | AB18: =IFERROR(N$18*Z18/SUM(Z$18),0) -> 0 | AD18: 1 | AF18: =R$18*AD18/SUM(AD$18) -> 0 | AH18: ='4_DataSlave'!D20 -> Suitability of new location | AI18: ='4_DataSlave'!E20 -> Relocation | AJ18: + | AK18: 2 | AM18: =$X$18*AK18/SUM($AK$18:$AK$19) -> 0.01 | AO18: + | AP18: 0 | AR18: =IFERROR($AB$18*AP18/SUM($AP$18:$AP$19),0) -> 0 | AT18: + | AU18: 1 | AW18: =$AF$18*AU18/SUM($AU$18:$AU$19) -> 0
AH19: ='4_DataSlave'!D21 -> Evacuation | AI19: ='4_DataSlave'!E21 -> Reloc_Plan | AJ19: + | AK19: 3 | AM19: =$X$18*AK19/SUM($AK$18:$AK$19) -> 0.015 | AO19: + | AP19: 0 | AR19: =IFERROR($AB$18*AP19/SUM($AP$18:$AP$19),0) -> 0 | AT19: + | AU19: 1 | AW19: =$AF$18*AU19/SUM($AU$18:$AU$19) -> 0
F20: ACCESS | H20: 2 | J20: =$D$6*H$20/SUM(H$6:H$22) -> 0.05 | L20: 1 | N20: =$D$6*L$20/SUM(L$6:L$22) -> 0.025 | P20: 1 | R20: =$D$6*P$20/SUM(P$6:P$22) -> 0.03 | T20: Access External | V20: 2 | X20: =J$20*V20/SUM(V$20) -> 0.05 | Z20: 1 | AB20: =N$20*Z20/SUM(Z$20) -> 0.025 | AD20: 1 | AF20: =R$20*AD20/SUM(AD$20) -> 0.03 | AH20: ='4_DataSlave'!D22 -> Access routes | AI20: ='4_DataSlave'!E22 -> Access | AJ20: + | AK20: 1 | AM20: =$X$20*AK20/SUM($AK$20:$AK$22) -> 0.01666666667 | AO20: + | AP20: 1 | AR20: =IFERROR($AB$20*AP20/SUM(AP$20:AP$22),0) -> 0.025 | AT20: + | AU20: 3 | AW20: =$AF$20*AU20/SUM($AU$20:$AU$22) -> 0.015
AH21: ='4_DataSlave'!D23 -> Access of HC personnel and ambulances | AI21: ='4_DataSlave'!E23 -> Ambulances | AJ21: + | AK21: 1 | AM21: =$X$20*AK21/SUM($AK$20:$AK$22) -> 0.01666666667 | AO21: + | AP21: 0 | AR21: =IFERROR($AB$20*AP21/SUM(AP$20:AP$22),0) -> 0 | AT21: + | AU21: 2 | AW21: =$AF$20*AU21/SUM($AU$20:$AU$22) -> 0.01
AH22: ='4_DataSlave'!D24 -> Secure supplier resources | AI22: ='4_DataSlave'!E24 -> Supplier | AJ22: + | AK22: 1 | AM22: =$X$20*AK22/SUM($AK$20:$AK$22) -> 0.01666666667 | AO22: + | AP22: 0 | AR22: =IFERROR($AB$20*AP22/SUM(AP$20:AP$22),0) -> 0 | AT22: + | AU22: 1 | AW22: =$AF$20*AU22/SUM($AU$20:$AU$22) -> 0.005
B23: INFRASTRUCTURE | D23: 0.7 | F23: INFRASTRUCTURE | H23: 1 | J23: =D23*$H$23/SUM($H$23) -> 0.7 | L23: 1 | N23: =D23*$L$23/SUM($L$23) -> 0.7 | P23: 1 | R23: =D23*$P$23/SUM($P$23) -> 0.7 | T23: Managing Access and Control Entries | V23: 1 | X23: =$J$23*$V$23/SUM($V$23:$V$48) -> 0.02592592593 | Z23: 9 | AB23: =$J$23*$Z23/SUM($Z$23:$Z$48) -> 0.2739130435 | AD23: 4 | AF23: =$J$23*$AD$23/SUM($AD$23:$AD$48) -> 0.1728395062 | AH23: ='4_DataSlave'!D25 -> Lighting systems | AI23: ='4_DataSlave'!E25 -> Lighting | AJ23: + | AK23: 2 | AM23: =$X$23*AK23/SUM($AK$23:$AK$25) -> 0.01296296296 | AO23: + | AP23: 2 | AR23: =$AB$23*AP23/SUM($AP$23:$AP$25) -> 0.09130434783 | AT23: + | AU23: 2 | AW23: =$AF$23*AU23/SUM($AU$23:$AU$25) -> 0.03840877915
AH24: ='4_DataSlave'!D26 -> Safety of the perimeter fence | AI24: ='4_DataSlave'!E26 -> Fence | AJ24: + | AK24: 1 | AM24: =$X$23*AK24/SUM($AK$23:$AK$25) -> 0.006481481481 | AO24: + | AP24: 2 | AR24: =$AB$23*AP24/SUM($AP$23:$AP$25) -> 0.09130434783 | AT24: + | AU24: 4 | AW24: =$AF$23*AU24/SUM($AU$23:$AU$25) -> 0.0768175583
AH25: ='4_DataSlave'!D27 -> Gates and entrances | AI25: ='4_DataSlave'!E27 -> Gates | AJ25: + | AK25: 1 | AM25: =$X$23*AK25/SUM($AK$23:$AK$25) -> 0.006481481481 | AO25: + | AP25: 2 | AR25: =$AB$23*AP25/SUM($AP$23:$AP$25) -> 0.09130434783 | AT25: + | AU25: 3 | AW25: =$AF$23*AU25/SUM($AU$23:$AU$25) -> 0.05761316872
T26: Structural Preventive Measures | V26: 6 | X26: =$J$23*$V$26/SUM($V$23:$V$48) -> 0.1555555556 | Z26: 2 | AB26: =$J$23*$Z26/SUM($Z$23:$Z$48) -> 0.06086956522 | AD26: 0.2 | AF26: =$J$23*$AD26/SUM($AD$23:$AD$48) -> 0.008641975309 | AH26: ='4_DataSlave'!D28 -> Conditions | AI26: ='4_DataSlave'!E28 -> Condition | AJ26: + | AK26: 0 | AM26: =$X$26*AK26/SUM($AK$26:$AK$29) -> 0 | AO26: + | AP26: 1 | AR26: =$AB$26*AP26/SUM($AP$26:$AP$29) -> 0.03043478261 | AT26: - | AU26: 1 | AW26: =$AF$26*AU26/SUM($AU$26:$AU$29) -> 0.008641975309
AH27: ='4_DataSlave'!D29 -> Structural Integrity | AI27: ='4_DataSlave'!E29 -> Integrity | AJ27: + | AK27: 2 | AM27: =$X$26*AK27/SUM($AK$26:$AK$29) -> 0.05185185185 | AO27: + | AP27: 0 | AR27: =$AB$26*AP27/SUM($AP$26:$AP$29) -> 0 | AT27: + | AU27: 0 | AW27: =$AF$26*AU27/SUM($AU$26:$AU$29) -> 0
AH28: ='4_DataSlave'!D30 -> Structure Material | AI28: ='4_DataSlave'!E30 -> Material | AJ28: + | AK28: 1 | AM28: =$X$26*AK28/SUM($AK$26:$AK$29) -> 0.02592592593 | AO28: + | AP28: 0 | AR28: =$AB$26*AP28/SUM($AP$26:$AP$29) -> 0 | AT28: + | AU28: 0 | AW28: =$AF$26*AU28/SUM($AU$26:$AU$29) -> 0
AH29: ='4_DataSlave'!D31 -> Reinforce critical structure element | AI29: ='4_DataSlave'!E31 -> Passive_Sec | AJ29: + | AK29: 3 | AM29: =$X$26*AK29/SUM($AK$26:$AK$29) -> 0.07777777778 | AO29: + | AP29: 1 | AR29: =$AB$26*AP29/SUM($AP$26:$AP$29) -> 0.03043478261 | AT29: + | AU29: 0 | AW29: =$AF$26*AU29/SUM($AU$26:$AU$29) -> 0
T30: Layout : space arrengements | V30: 8 | X30: =$J$23*$V$30/SUM($V$23:$V$48) -> 0.2074074074 | Z30: 5 | AB30: =$J$23*$Z30/SUM($Z$23:$Z$48) -> 0.152173913 | AD30: 4 | AF30: =$J$23*$AD30/SUM($AD$23:$AD$48) -> 0.1728395062 | AH30: ='4_DataSlave'!D32 -> Distribution operational priority areas | AI30: ='4_DataSlave'!E32 -> Priority areas | AJ30: + | AK30: 3 | AM30: =$X$30*AK30/SUM($AK$30:$AK$33) -> 0.05656565657 | AO30: + | AP30: 1 | AR30: =$AB$30*AP30/SUM($AP$30:$AP$33) -> 0.02173913043 | AT30: + | AU30: 2 | AW30: =$AF$30*AU30/SUM($AU$30:$AU$33) -> 0.04938271605
AH31: ='4_DataSlave'!D33 -> Concentrated vs. Spread | AI31: ='4_DataSlave'!E33 -> Layout | AJ31: - | AK31: 6 | AM31: =$X$30*AK31/SUM($AK$30:$AK$33) -> 0.1131313131 | AO31: + | AP31: 2 | AR31: =$AB$30*AP31/SUM($AP$30:$AP$33) -> 0.04347826087 | AT31: + | AU31: 0 | AW31: =$AF$30*AU31/SUM($AU$30:$AU$33) -> 0
AH32: ='4_DataSlave'!D34 -> Existence of free space | AI32: ='4_DataSlave'!E34 -> Free space | AJ32: + | AK32: 2 | AM32: =$X$30*AK32/SUM($AK$30:$AK$33) -> 0.03771043771 | AO32: + | AP32: 0 | AR32: =$AB$30*AP32/SUM($AP$30:$AP$33) -> 0 | AT32: + | AU32: 4 | AW32: =$AF$30*AU32/SUM($AU$30:$AU$33) -> 0.0987654321
AH33: ='4_DataSlave'!D35 -> Location of valuable assests | AI33: ='4_DataSlave'!E35 -> Valuable assets | AJ33: + | AK33: 0 | AM33: =$X$30*AK33/SUM($AK$30:$AK$33) -> 0 | AO33: + | AP33: 4 | AR33: =$AB$30*AP33/SUM($AP$30:$AP$33) -> 0.08695652174 | AT33: + | AU33: 1 | AW33: =$AF$30*AU33/SUM($AU$30:$AU$33) -> 0.02469135802
T34: Exposure to external threaths | V34: 4 | X34: =$J$23*$V$34/SUM($V$23:$V$48) -> 0.1037037037 | Z34: 4 | AB34: =$J$23*$Z34/SUM($Z$23:$Z$48) -> 0.1217391304 | AD34: 1 | AF34: =$J$23*$AD34/SUM($AD$23:$AD$48) -> 0.04320987654 | AH34: ='4_DataSlave'!D36 -> Opening: windows | AI34: ='4_DataSlave'!E36 -> Windows | AJ34: + | AK34: 2 | AM34: =$X$34*AK34/SUM($AK$34:$AK$38) -> 0.02592592593 | AO34: + | AP34: 4 | AR34: =$AB$34*AP34/SUM($AP$34:$AP$38) -> 0.05410628019 | AT34: + | AU34: 1 | AW34: =$AF$34*AU34/SUM($AU$34:$AU$38) -> 0.007201646091
AH35: ='4_DataSlave'!D37 -> Opening: doors | AI35: ='4_DataSlave'!E37 -> Doors | AJ35: + | AK35: 3 | AM35: =$X$34*AK35/SUM($AK$34:$AK$38) -> 0.03888888889 | AO35: + | AP35: 2 | AR35: =$AB$34*AP35/SUM($AP$34:$AP$38) -> 0.0270531401 | AT35: + | AU35: 2 | AW35: =$AF$34*AU35/SUM($AU$34:$AU$38) -> 0.01440329218
AH36: ='4_DataSlave'!D38 -> Opening exposure | AI36: ='4_DataSlave'!E38 -> Exposure | AJ36: + | AK36: 1 | AM36: =$X$34*AK36/SUM($AK$34:$AK$38) -> 0.01296296296 | AO36: + | AP36: 2 | AR36: =$AB$34*AP36/SUM($AP$34:$AP$38) -> 0.0270531401 | AT36: + | AU36: 2 | AW36: =$AF$34*AU36/SUM($AU$34:$AU$38) -> 0.01440329218
AH37: ='4_DataSlave'!D39 -> Standoff distance | AI37: ='4_DataSlave'!E39 -> Standoff | AJ37: + | AK37: 2 | AM37: =$X$34*AK37/SUM($AK$34:$AK$38) -> 0.02592592593 | AO37: + | AP37: 0 | AR37: =$AB$34*AP37/SUM($AP$34:$AP$38) -> 0 | AT37: + | AU37: 0 | AW37: =$AF$34*AU37/SUM($AU$34:$AU$38) -> 0
AH38: ='4_DataSlave'!D40 -> Internal fencing | AI38: ='4_DataSlave'!E40 -> Int_fence | AJ38: + | AK38: 0 | AM38: =$X$34*AK38/SUM($AK$34:$AK$38) -> 0 | AO38: + | AP38: 1 | AR38: =$AB$34*AP38/SUM($AP$34:$AP$38) -> 0.01352657005 | AT38: + | AU38: 1 | AW38: =$AF$34*AU38/SUM($AU$34:$AU$38) -> 0.007201646091
T39: Internal Circulation | V39: 2 | X39: =$J$23*$V$39/SUM($V$23:$V$48) -> 0.05185185185 | Z39: 2 | AB39: =$J$23*$Z$39/SUM($Z$23:$Z$48) -> 0.06086956522 | AD39: 4 | AF39: =$J$23*$AD$39/SUM($AD$23:$AD$48) -> 0.1728395062 | AH39: ='4_DataSlave'!D41 -> Safety of mouvements | AI39: ='4_DataSlave'!E41 -> Movement | AJ39: + | AK39: 2 | AM39: =$X$39*AK39/SUM($AK$39:$AK$42) -> 0.01481481481 | AO39: - | AP39: 1 | AR39: =$AB$39*AP39/SUM($AP$39:$AP$42) -> 0.0152173913 | AT39: + | AU39: 2 | AW39: =$AF$39*AU39/SUM($AU$39:$AU$42) -> 0.06913580247
AH40: ='4_DataSlave'!D42 -> Safety of stairways | AI40: ='4_DataSlave'!E42 -> Stairs | AJ40: + | AK40: 2 | AM40: =$X$39*AK40/SUM($AK$39:$AK$42) -> 0.01481481481 | AO40: + | AP40: 0 | AR40: =$AB$39*AP40/SUM($AP$39:$AP$42) -> 0 | AT40: + | AU40: 1 | AW40: =$AF$39*AU40/SUM($AU$39:$AU$42) -> 0.03456790123
AH41: ='4_DataSlave'!D43 -> Safety of elevator system | AI41: ='4_DataSlave'!E43 -> Elevators | AJ41: + | AK41: 1 | AM41: =$X$39*AK41/SUM($AK$39:$AK$42) -> 0.007407407407 | AO41: + | AP41: 0 | AR41: =$AB$39*AP41/SUM($AP$39:$AP$42) -> 0 | AT41: + | AU41: 1 | AW41: =$AF$39*AU41/SUM($AU$39:$AU$42) -> 0.03456790123
AH42: ='4_DataSlave'!D44 -> Evacuation routes | AI42: ='4_DataSlave'!E44 -> Evacuation | AJ42: + | AK42: 2 | AM42: =$X$39*AK42/SUM($AK$39:$AK$42) -> 0.01481481481 | AO42: + | AP42: 3 | AR42: =$AB$39*AP42/SUM($AP$39:$AP$42) -> 0.04565217391 | AT42: + | AU42: 1 | AW42: =$AF$39*AU42/SUM($AU$39:$AU$42) -> 0.03456790123
T43: Self-sufficiency | V43: 6 | X43: =$J$23*$V$43/SUM($V$23:$V$48) -> 0.1555555556 | Z43: 1 | AB43: =$J$23*$Z$43/SUM($Z$23:$Z$48) -> 0.03043478261 | AD43: 3 | AF43: =$J$23*$AD$43/SUM($AD$23:$AD$48) -> 0.1296296296 | AH43: ='4_DataSlave'!D45 -> Safety of telecommmunication system | AI43: ='4_DataSlave'!E45 -> Telecom | AJ43: + | AK43: 3 | AM43: =$X$43*AK43/SUM($AK$43:$AK$48) -> 0.03111111111 | AO43: + | AP43: 1 | AR43: =$AB$43*AP43/SUM($AP$43:$AP$48) -> 0.03043478261 | AT43: + | AU43: 2 | AW43: =$AF$43*AU43/SUM($AU$43:$AU$48) -> 0.02160493827
AH44: ='4_DataSlave'!D46 -> Safety of water system | AI44: ='4_DataSlave'!E46 -> Water | AJ44: + | AK44: 2 | AM44: 0.02074074074 | AO44: + | AP44: 0 | AR44: 0 | AT44: + | AU44: 1 | AW44: 0.01080246914
AH45: ='4_DataSlave'!D47 -> Safety of electrical system | AI45: ='4_DataSlave'!E47 -> Electrical | AJ45: + | AK45: 4 | AM45: 0.04148148148 | AO45: + | AP45: 0 | AR45: 0 | AT45: + | AU45: 3 | AW45: 0.03240740741
AH46: ='4_DataSlave'!D48 -> Safe disposal of medical waste | AI46: ='4_DataSlave'!E48 -> Med_waste | AJ46: + | AK46: 4 | AM46: 0.04148148148 | AO46: + | AP46: 0 | AR46: 0 | AT46: + | AU46: 3 | AW46: 0.03240740741
AH47: ='4_DataSlave'!D49 -> Safety of sewage disposal | AI47: ='4_DataSlave'!E49 -> Sewage | AJ47: + | AK47: 1 | AM47: 0.01037037037 | AO47: + | AP47: 0 | AR47: 0 | AT47: + | AU47: 1 | AW47: 0.01080246914
AH48: ='4_DataSlave'!D50 -> Safety of dead body evacuation | AI48: ='4_DataSlave'!E50 -> Dead | AJ48: + | AK48: 1 | AM48: 0.01037037037 | AO48: + | AP48: 0 | AR48: 0 | AT48: + | AU48: 2 | AW48: 0.02160493827
D50: =SUM(D6:D48) -> 1 | J50: =SUM(J6:J48) -> 1 | N50: =SUM(N6:N48) -> 1 | R50: =SUM(R6:R48) -> 1 | X50: =SUM(X6:X48) -> 1 | AB50: =SUM(AB6:AB48) -> 1 | AF50: =SUM(AF6:AF48) -> 1 | AM50: =SUM(AM6:AM48) -> 1 | AR50: =SUM(AR6:AR48) -> 1 | AW50: =SUM(AW6:AW48) -> 1

Sheet 4_DataSlave (hidden)
A1: Domain | B1: Situation | C1: Scenario | D1: Opss | E1: Scenario short | F1: Range name | G1: Deviation from mean | H1: Max deviation | I1: Boosted scoring | J1: Original weight | K1: User Boosted weight | V1: User scenario scores
A2: Module 1 - HAZARD | B2: Indirect (and direct) use of Heavy weapons | C2: Heavy weapons | D2: Fuck, they are bombing us! | E2: Bombing | F2: hz_bomb | G2: =(V2-AVERAGE($V2:$V$4))/COUNT($V$2:$V$4) ->  | H2: =IF(G2=MAX($G$2:$G$4),G2,0) ->  | I2: =V2*IF(H2=MAX(H2:H4),H2+2,1) ->  | J2: =V2/SUM($V$2:$V$4) ->  | K2: =I2/SUM($I$2:$I$4) ->  | V2: =IF(ISBLANK('1_Survey'!F7)=FALSE,IF('1_Survey'!F7="Zero",0,IF('1_Survey'!F7="Low",1,IF('1_Survey'!F7="Average",2,3))),"Not Filled") -> Not Filled
A3: Module 1 - HAZARD | B3: Intrusion (armed/non armed/robbery) | C3: Intrusion | D3: Hail To The Thief | E3: Intrusion | F3: hz_intrs | G3: =(V3-AVERAGE($V2:$V$4))/COUNT($V$2:$V$4) ->  | H3: =IF(G3=MAX($G$2:$G$4),G3,0) ->  | I3: =V3*IF(H3=MAX(H2:H4),H3+2,1) ->  | J3: =V3/SUM($V$2:$V$4) ->  | K3: =I3/SUM($I$2:$I$4) ->  | V3: =IF(ISBLANK('1_Survey'!F8)=FALSE,IF('1_Survey'!F8="Zero",0,IF('1_Survey'!F8="Low",1,IF('1_Survey'!F8="Average",2,3))),"Not Filled") -> Not Filled
A4: Module 1 - HAZARD | B4: Civil unrest leading to MIP (riots) | C4: Massive Influx Wunded | D4: The city is on fire | E4: MIP | F4: hz_mip | G4: =(V4-AVERAGE($V2:$V$4))/COUNT($V$2:$V$4) ->  | H4: =IF(G4=MAX($G$2:$G$4),G4,0) ->  | I4: =V4*IF(H4=MAX(H2:H4),H4+2,1) ->  | J4: =V4/SUM($V$2:$V$4) ->  | K4: =I4/SUM($I$2:$I$4) ->  | V4: =IF(ISBLANK('1_Survey'!F9)=FALSE,IF('1_Survey'!F9="Zero",0,IF('1_Survey'!F9="Low",1,IF('1_Survey'!F9="Average",2,3))),"Not Filled") -> Not Filled | Z4: Overwrite Internal Exposure to produce to total available score | AD4: write Only Internal Exposure Ex. Spread | AG4: Write Only portion Ext. Exp. | AH4: Write Prepardness j excluding all Exposures | AS4: In order to run the macro to attach the Label just leave the double column with the nicknames
A5: Module 1 - HAZARD | B5: External Infrastructure | C5: External Infrastructure | D5: Black Hole effect | E5: Ext. Infrastr. | F5: ee_xtinf | V5: =IF(ISBLANK('1_Survey'!F11)=FALSE,IF('1_Survey'!F11="N/A",10,(IF('1_Survey'!F11="Zero",0,IF('1_Survey'!F11="Low",1,IF('1_Survey'!F11="Average",2,3))))),"Not Filled") -> Not Filled
A6: Module 1 - HAZARD | B6: Confidence in Risk Analysis | C6: Confidence in Risk Analysis | D6: Better be sure | E6: Confidence | F6: ce_conf | V6: =IF(ISBLANK('1_Survey'!F13)=FALSE,IF('1_Survey'!F13="Low",1,IF('1_Survey'!F13="Average",2,3)),"Not Filled") -> Not Filled | AE6: Int. ii | AG6: Ext ei
A7: Domain | B7: Imperative | C7: Category | D7: Indicator | E7: Indic. short | F7: Range name | G7: d1 | H7: w1 | I7: d2 | J7: w2 | K7: d3 | L7: w3 | M7: User score | N7: Identify the N/A and write their score | Q7: Add the score not attributed because of the N/A | T7: ii | U7: ei | W7: dij*wij*pj = vij | AC7: Achievable | AD7: x'i1 | AE7: x'i2 | AF7: x'i3 | AG7: (∑j(-1)*vi)/p | AH7: Indicator score weighted by scenario & user excluded those all exposure int & ext | AK7: Prepardeness | AL7: HCiD/Avail. | AM7: Pie tot. overall | AN7: Potential to increase | AO7: Rank potential | AT7: Indic. short | AU7: Top 5 Priority
A8: Module 2 - MANAGEMENT | B8: PROCESS/PREPARDNESS | C8: Safety and security framework | D8: Risk assessment & Contingency planning | E8: Contingency | F8: pr_cntpl | G8: + | H8: ='3_WeightingAssistent'!AM6 -> 0.05288461538 | I8: + | J8: ='3_WeightingAssistent'!AR6 -> 0.05208333333 | K8: ='3_WeightingAssistent'!AT6 -> + | L8: ='3_WeightingAssistent'!AW6 -> 0.05172413793 | M8: =IF(ISBLANK('1_Survey'!F15)=FALSE,IF('1_Survey'!F15="N/A",10,IF('1_Survey'!F15="Zero",0,IF('1_Survey'!F15="Zero-Low",0.16,IF('1_Survey'!F15="Low",0.33,IF('1_Survey'!F15="Low-Average",0.45,IF('1_Survey'!F15="Average",0.66,IF('1_Survey'!F15="Average-High",0.82,1))))))),"Not Filled") -> Not Filled | N8: =IF($M8=10,H8,0) -> 0 | O8: =IF($M8=10,J8,0) -> 0 | P8: =IF($M8=10,L8,0) -> 0 | Q8: =IF($M8<>10,H8+$N$52,0) ->  | R8: =IF($M8<>10,J8+$O$52,0) ->  | S8: =IF($M8<>10,L8+$P$52,0) ->  | T8: 0 | U8: 1 | W8: =IF(G8="-",'4_DataSlave'!$K$2*Q8*-1,'4_DataSlave'!$K$2*Q8) ->  | X8: =IF(I8="-",'4_DataSlave'!$K$3*R8*-1,'4_DataSlave'!$K$3*R8) ->  | Y8: =IF(K8="-",'4_DataSlave'!$K$4*S8*-1,'4_DataSlave'!$K$4*S8) ->  | Z8: =IF(AND($T8=1,G8="-"),IF($M8=0.33,W8,IF($M8=0.66,0,IF($M8=1,-1*W8,0))),W8) ->  | AA8: =IF(AND($T8=1,I8="-"),IF($M8=0.33,X8,IF($M8=0.66,0,IF($M8=1,-1*X8,0))),X8) ->  | AB8: =IF(AND($T8=1,K8="-"),IF($M8=0.33,Y8,IF($M8=0.66,0,IF($M8=1,-1*Y8,0))),Y8) ->  | AC8: =SUM(Z8:AB8) ->  | AD8: =IF(AND($T8=1,G8="-"),IF($M8=0.33,W8,IF($M8=0.66,0,IF($M8=1,-1*W8,0))),0) -> 0 | AE8: =IF(AND($T8=1,I8="-"),IF($M8=0.33,X8,IF($M8=0.66,0,IF($M8=1,-1*X8,0))),0) -> 0 | AF8: =IF(AND($T8=1,K8="-"),IF($M8=0.33,Y8,IF($M8=0.66,0,IF($M8=1,-1*Y8,0))),0) -> 0 | AG8: =IF(AND(U8=1,M8=0,$V$5<4),-1*ABS(AC8)*(4-$V$5)/3,0) -> 0 | AH8: =IF(AND(AD8=0,$AG8=0),$M8*W8,0) ->  | AI8: =IF(AND(AE8=0,$AG8=0),$M8*X8,0) ->  | AJ8: =IF(AND(AF8=0,$AG8=0),$M8*Y8,0) ->  | AK8: =SUM(AD8:AJ8) ->  | AL8: =IFERROR(IF(AK8/AC8<0,0,AK8/AC8),0) -> 0 | AM8: =1-AL8 -> 1 | AN8: =AC8-AK8 ->  | AO8: =_xlfn.RANK.AVG(AN8,AN$8:AN$50) ->  | AS8: =AT8 -> Contingency | AT8: Contingency | AU8: =IFERROR(IF(AO8<=5,AN8,""),0) -> 0
A9: Module 2 - MANAGEMENT | B9: PROCESS/PREPARDNESS | C9: Safety and security framework | D9: Identification | E9: Identification | F9: pr_ident | G9: ='3_WeightingAssistent'!AJ7 -> + | H9: ='3_WeightingAssistent'!AM7 -> 0.01442307692 | I9: ='3_WeightingAssistent'!AO7 -> + | J9: ='3_WeightingAssistent'!AR7 -> 0.02083333333 | K9: ='3_WeightingAssistent'!AT7 -> + | L9: ='3_WeightingAssistent'!AW7 -> 0.005172413793 | M9: =IF(ISBLANK('1_Survey'!F16)=FALSE,IF('1_Survey'!F16="N/A",10,IF('1_Survey'!F16="Zero",0,IF('1_Survey'!F16="Zero-Low",0.16,IF('1_Survey'!F16="Low",0.33,IF('1_Survey'!F16="Low-Average",0.45,IF('1_Survey'!F16="Average",0.66,IF('1_Survey'!F16="Average-High",0.82,1))))))),"Not Filled") -> Not Filled | N9: 0 | O9: 0 | P9: 0 | Q9: =IF($M9<>10,H9+$N$52,0) ->  | R9: =IF($M9<>10,J9+$O$52,0) ->  | S9: =IF($M9<>10,L9+$P$52,0) ->  | T9: 0 | U9: 0 | W9: =IF(G9="-",'4_DataSlave'!$K$2*Q9*-1,'4_DataSlave'!$K$2*Q9) ->  | X9: =IF(I9="-",'4_DataSlave'!$K$3*R9*-1,'4_DataSlave'!$K$3*R9) ->  | Y9: =IF(K9="-",'4_DataSlave'!$K$4*S9*-1,'4_DataSlave'!$K$4*S9) ->  | Z9: =IF(AND($T9=1,G9="-"),IF($M9=0.33,W9,IF($M9=0.66,0,IF($M9=1,-1*W9,0))),W9) ->  | AA9: =IF(AND($T9=1,I9="-"),IF($M9=0.33,X9,IF($M9=0.66,0,IF($M9=1,-1*X9,0))),X9) ->  | AB9: =IF(AND($T9=1,K9="-"),IF($M9=0.33,Y9,IF($M9=0.66,0,IF($M9=1,-1*Y9,0))),Y9) ->  | AD9: =IF(AND($T9=1,G9="-"),IF($M9=0.33,W9,IF($M9=0.66,0,IF($M9=1,-1*W9,0))),0) -> 0 | AE9: =IF(AND($T9=1,I9="-"),IF($M9=0.33,X9,IF($M9=0.66,0,IF($M9=1,-1*X9,0))),0) -> 0 | AF9: =IF(AND($T9=1,K9="-"),IF($M9=0.33,Y9,IF($M9=0.66,0,IF($M9=1,-1*Y9,0))),0) -> 0 | AG9: =IF(AND(U9=1,M9=0,$V$5<4),-1*ABS(AC9)*(4-$V$5)/3,0) -> 0 | AH9: =IF(AND(AD9=0,$AG9=0),$M9*W9,0) ->  | AI9: =IF(AND(AE9=0,$AG9=0),$M9*X9,0) ->  | AJ9: =IF(AND(AF9=0,$AG9=0),$M9*Y9,0) ->  | AK9: =SUM(AD9:AJ9) ->  | AL9: 0 | AM9: 1 | AS9: Identification | AT9: Identification | AU9: =IFERROR(IF(AO9<=5,AN9,""),0) -> 0
A10: Module 2 - MANAGEMENT | B10: PROCESS/PREPARDNESS | C10: Safety and security framework | D10: "No weapons" policy | E10: No_weapons | F10: pr_nowpn | G10: ='3_WeightingAssistent'!AJ8 -> + | H10: ='3_WeightingAssistent'!AM8 -> 0 | I10: ='3_WeightingAssistent'!AO8 -> + | J10: ='3_WeightingAssistent'!AR8 -> 0.01041666667 | K10: ='3_WeightingAssistent'!AT8 -> + | L10: ='3_WeightingAssistent'!AW8 -> 0.01034482759 | M10: =IF(ISBLANK('1_Survey'!F17)=FALSE,IF('1_Survey'!F17="N/A",10,IF('1_Survey'!F17="Zero",0,IF('1_Survey'!F17="Zero-Low",0.16,IF('1_Survey'!F17="Low",0.33,IF('1_Survey'!F17="Low-Average",0.45,IF('1_Survey'!F17="Average",0.66,IF('1_Survey'!F17="Average-High",0.82,1))))))),"Not Filled") -> Not Filled | N10: 0 | O10: 0 | P10: 0 | T10: 0 | U10: 0 | W10: =IF(G10="-",'4_DataSlave'!$K$2*Q10*-1,'4_DataSlave'!$K$2*Q10) ->  | X10: =IF(I10="-",'4_DataSlave'!$K$3*R10*-1,'4_DataSlave'!$K$3*R10) ->  | Y10: =IF(K10="-",'4_DataSlave'!$K$4*S10*-1,'4_DataSlave'!$K$4*S10) ->  | AD10: 0 | AE10: 0 | AF10: 0 | AG10: 0 | AL10: 0 | AM10: 1 | AS10: No weapons | AT10: No weapons | AU10: 0
A11: Module 2 - MANAGEMENT | B11: PROCESS/PREPARDNESS | C11: Safety and security framework | D11: Perception review | E11: Perception | F11: pr_prcpt | G11: ='3_WeightingAssistent'!AJ9 -> + | H11: ='3_WeightingAssistent'!AM9 -> 0.004807692308 | I11: ='3_WeightingAssistent'!AO9 -> + | J11: ='3_WeightingAssistent'!AR9 -> 0.01041666667 | K11: ='3_WeightingAssistent'!AT9 -> + | L11: ='3_WeightingAssistent'!AW9 -> 0.01034482759 | M11: =IF(ISBLANK('1_Survey'!F18)=FALSE,IF('1_Survey'!F18="N/A",10,IF('1_Survey'!F18="Zero",0,IF('1_Survey'!F18="Zero-Low",0.16,IF('1_Survey'!F18="Low",0.33,IF('1_Survey'!F18="Low-Average",0.45,IF('1_Survey'!F18="Average",0.66,IF('1_Survey'!F18="Average-High",0.82,1))))))),"Not Filled") -> Not Filled | N11: 0 | O11: 0 | P11: 0 | T11: 0 | U11: 0 | W11: =IF(G11="-",'4_DataSlave'!$K$2*Q11*-1,'4_DataSlave'!$K$2*Q11) ->  | X11: =IF(I11="-",'4_DataSlave'!$K$3*R11*-1,'4_DataSlave'!$K$3*R11) ->  | Y11: =IF(K11="-",'4_DataSlave'!$K$4*S11*-1,'4_DataSlave'!$K$4*S11) ->  | AD11: 0 | AE11: 0 | AF11: 0 | AG11: 0 | AK11: =SUM(AD11:AJ11) ->  | AL11: 0 | AM11: 1 | AS11: Perception | AT11: Perception | AU11: 0
A12: Module 2 - MANAGEMENT | B12: PROCESS/PREPARDNESS | C12: Safety and security framework | D12: Fire protection system | E12: Fire | F12: pr_fire | G12: ='3_WeightingAssistent'!AJ10 -> + | H12: ='3_WeightingAssistent'!AM10 -> 0.04807692308 | I12: ='3_WeightingAssistent'!AO10 -> + | J12: ='3_WeightingAssistent'!AR10 -> 0.05208333333 | K12: ='3_WeightingAssistent'!AT10 -> + | L12: ='3_WeightingAssistent'!AW10 -> 0.05172413793 | M12: =IF(ISBLANK('1_Survey'!F19)=FALSE,IF('1_Survey'!F19="N/A",10,IF('1_Survey'!F19="Zero",0,IF('1_Survey'!F19="Zero-Low",0.16,IF('1_Survey'!F19="Low",0.33,IF('1_Survey'!F19="Low-Average",0.45,IF('1_Survey'!F19="Average",0.66,IF('1_Survey'!F19="Average-High",0.82,1))))))),"Not Filled") -> Not Filled | N12: 0 | O12: 0 | P12: 0 | T12: 0 | U12: 1 | W12: =IF(G12="-",'4_DataSlave'!$K$2*Q12*-1,'4_DataSlave'!$K$2*Q12) ->  | X12: =IF(I12="-",'4_DataSlave'!$K$3*R12*-1,'4_DataSlave'!$K$3*R12) ->  | Y12: =IF(K12="-",'4_DataSlave'!$K$4*S12*-1,'4_DataSlave'!$K$4*S12) ->  | AD12: 0 | AE12: 0 | AF12: 0 | AG12: 0 | AL12: 0 | AM12: 1 | AS12: Fire | AT12: Fire | AU12: 0
A13: Module 2 - MANAGEMENT | B13: PROCESS/PREPARDNESS | C13: Safety and security framework | D13: Monitoring of a HC facility HR guards | E13: Security | F13: pr_secmon | G13: ='3_WeightingAssistent'!AJ11 -> + | H13: ='3_WeightingAssistent'!AM11 -> 0.004807692308 | I13: ='3_WeightingAssistent'!AO11 -> + | J13: ='3_WeightingAssistent'!AR11 -> 0.1041666667 | K13: ='3_WeightingAssistent'!AT11 -> + | L13: ='3_WeightingAssistent'!AW11 -> 0.02068965517 | M13: =IF(ISBLANK('1_Survey'!F20)=FALSE,IF('1_Survey'!F20="N/A",10,IF('1_Survey'!F20="Zero",0,IF('1_Survey'!F20="Zero-Low",0.16,IF('1_Survey'!F20="Low",0.33,IF('1_Survey'!F20="Low-Average",0.45,IF('1_Survey'!F20="Average",0.66,IF('1_Survey'!F20="Average-High",0.82,1))))))),"Not Filled") -> Not Filled | N13: 0 | O13: 0 | P13: 0 | T13: 0 | U13: 0 | W13: =IF(G13="-",'4_DataSlave'!$K$2*Q13*-1,'4_DataSlave'!$K$2*Q13) ->  | X13: =IF(I13="-",'4_DataSlave'!$K$3*R13*-1,'4_DataSlave'!$K$3*R13) ->  | Y13: =IF(K13="-",'4_DataSlave'!$K$4*S13*-1,'4_DataSlave'!$K$4*S13) ->  | AD13: 0 | AE13: 0 | AF13: 0 | AG13: 0 | AL13: 0 | AM13: 1 | AS13: Security | AT13: Security | AU13: 0
A14: Module 2 - MANAGEMENT | B14: PEOPLE | C14: Media | D14: Media strategy | E14: Media | F14: mp_media | G14: ='3_WeightingAssistent'!AJ12 -> + | H14: ='3_WeightingAssistent'!AM12 -> 0.007692307692 | I14: ='3_WeightingAssistent'!AO12 -> + | J14: ='3_WeightingAssistent'!AR12 -> 0.005 | K14: ='3_WeightingAssistent'!AT12 -> + | L14: ='3_WeightingAssistent'!AW12 -> 0.006315789474 | M14: =IF(ISBLANK('1_Survey'!F22)=FALSE,IF('1_Survey'!F22="N/A",10,IF('1_Survey'!F22="Zero",0,IF('1_Survey'!F22="Zero-Low",0.16,IF('1_Survey'!F22="Low",0.33,IF('1_Survey'!F22="Low-Average",0.45,IF('1_Survey'!F22="Average",0.66,IF('1_Survey'!F22="Average-High",0.82,1))))))),"Not Filled") -> Not Filled | N14: =IF($M14=10,H14,0) -> 0 | O14: =IF($M14=10,J14,0) -> 0 | P14: =IF($M14=10,L14,0) -> 0 | T14: 0 | U14: 0 | W14: =IF(G14="-",'4_DataSlave'!$K$2*Q14*-1,'4_DataSlave'!$K$2*Q14) ->  | X14: =IF(I14="-",'4_DataSlave'!$K$3*R14*-1,'4_DataSlave'!$K$3*R14) ->  | Y14: =IF(K14="-",'4_DataSlave'!$K$4*S14*-1,'4_DataSlave'!$K$4*S14) ->  | AD14: 0 | AE14: 0 | AF14: 0 | AG14: 0 | AL14: 0 | AM14: 1 | AS14: Media | AT14: Media | AU14: 0
A15: Module 2 - MANAGEMENT | B15: PEOPLE | C15: Patients and relatives | D15: Accomodating needs of patients' relatives | E15: Relatives | F15: mp_rltvs | G15: ='3_WeightingAssistent'!AJ13 -> + | H15: ='3_WeightingAssistent'!AM13 -> 0.01538461538 | I15: ='3_WeightingAssistent'!AO13 -> + | J15: ='3_WeightingAssistent'!AR13 -> 0.005 | K15: ='3_WeightingAssistent'!AT13 -> + | L15: ='3_WeightingAssistent'!AW13 -> 0.01894736842 | M15: =IF(ISBLANK('1_Survey'!F24)=FALSE,IF('1_Survey'!F24="N/A",10,IF('1_Survey'!F24="Zero",0,IF('1_Survey'!F24="Zero-Low",0.16,IF('1_Survey'!F24="Low",0.33,IF('1_Survey'!F24="Low-Average",0.45,IF('1_Survey'!F24="Average",0.66,IF('1_Survey'!F24="Average-High",0.82,1))))))),"Not Filled") -> Not Filled | N15: 0 | O15: 0 | P15: 0 | T15: 0 | U15: 0 | W15: =IF(G15="-",'4_DataSlave'!$K$2*Q15*-1,'4_DataSlave'!$K$2*Q15) ->  | X15: =IF(I15="-",'4_DataSlave'!$K$3*R15*-1,'4_DataSlave'!$K$3*R15) ->  | Y15: =IF(K15="-",'4_DataSlave'!$K$4*S15*-1,'4_DataSlave'!$K$4*S15) ->  | AD15: 0 | AE15: 0 | AF15: 0 | AG15: 0 | AL15: 0 | AM15: 1 | AS15: Relatives | AT15: Relatives | AU15: 0
A16: Module 2 - MANAGEMENT | B16: PEOPLE | C16: Patients and relatives | D16: Protection of patients medical records | E16: Records | F16: mp_recs | G16: ='3_WeightingAssistent'!AJ14 -> + | H16: ='3_WeightingAssistent'!AM14 -> 0.01538461538 | I16: ='3_WeightingAssistent'!AO14 -> + | J16: ='3_WeightingAssistent'!AR14 -> 0.005 | K16: ='3_WeightingAssistent'!AT14 -> + | L16: ='3_WeightingAssistent'!AW14 -> 0.01894736842 | M16: =IF(ISBLANK('1_Survey'!F25)=FALSE,IF('1_Survey'!F25="N/A",10,IF('1_Survey'!F25="Zero",0,IF('1_Survey'!F25="Zero-Low",0.16,IF('1_Survey'!F25="Low",0.33,IF('1_Survey'!F25="Low-Average",0.45,IF('1_Survey'!F25="Average",0.66,IF('1_Survey'!F25="Average-High",0.82,1))))))),"Not Filled") -> Not Filled | N16: 0 | O16: 0 | P16: 0 | T16: 0 | U16: 0 | W16: =IF(G16="-",'4_DataSlave'!$K$2*Q16*-1,'4_DataSlave'!$K$2*Q16) ->  | X16: =IF(I16="-",'4_DataSlave'!$K$3*R16*-1,'4_DataSlave'!$K$3*R16) ->  | Y16: =IF(K16="-",'4_DataSlave'!$K$4*S16*-1,'4_DataSlave'!$K$4*S16) ->  | AD16: 0 | AE16: 0 | AF16: 0 | AG16: 0 | AL16: 0 | AM16: 1 | AS16: Records | AT16: Records | AU16: 0
A17: Module 2 - MANAGEMENT | B17: PEOPLE | C17: Staff & Equipment | D17: Surge capacity | E17: Surge | F17: mp_surge | G17: ='3_WeightingAssistent'!AJ15 -> + | H17: ='3_WeightingAssistent'!AM15 -> 0.02051282051 | I17: ='3_WeightingAssistent'!AO15 -> - | J17: ='3_WeightingAssistent'!AR15 -> 0.003333333333 | K17: ='3_WeightingAssistent'!AT15 -> + | L17: ='3_WeightingAssistent'!AW15 -> 0.03444976077 | M17: =IF(ISBLANK('1_Survey'!F27)=FALSE,IF('1_Survey'!F27="N/A",10,IF('1_Survey'!F27="Zero",0,IF('1_Survey'!F27="Zero-Low",0.16,IF('1_Survey'!F27="Low",0.33,IF('1_Survey'!F27="Low-Average",0.45,IF('1_Survey'!F27="Average",0.66,IF('1_Survey'!F27="Average-High",0.82,1))))))),"Not Filled") -> Not Filled | N17: 0 | O17: 0 | P17: 0 | T17: 0 | U17: 1 | W17: =IF(G17="-",'4_DataSlave'!$K$2*Q17*-1,'4_DataSlave'!$K$2*Q17) ->  | X17: =IF(I17="-",'4_DataSlave'!$K$3*R17*-1,'4_DataSlave'!$K$3*R17) ->  | Y17: =IF(K17="-",'4_DataSlave'!$K$4*S17*-1,'4_DataSlave'!$K$4*S17) ->  | AD17: 0 | AE17: 0 | AF17: 0 | AG17: 0 | AL17: 0 | AM17: 1 | AS17: Surge | AT17: Surge | AU17: 0
A18: Module 2 - MANAGEMENT | B18: PEOPLE | C18: Staff & Equipment | D18: Stock of medicines, instruments and other items | E18: MedStock | F18: mp_pharm | G18: ='3_WeightingAssistent'!AJ16 -> + | H18: ='3_WeightingAssistent'!AM16 -> 0.02051282051 | I18: ='3_WeightingAssistent'!AO16 -> - | J18: ='3_WeightingAssistent'!AR16 -> 0.003333333333 | K18: ='3_WeightingAssistent'!AT16 -> + | L18: ='3_WeightingAssistent'!AW16 -> 0.02066985646 | M18: =IF(ISBLANK('1_Survey'!F28)=FALSE,IF('1_Survey'!F28="N/A",10,IF('1_Survey'!F28="Zero",0,IF('1_Survey'!F28="Zero-Low",0.16,IF('1_Survey'!F28="Low",0.33,IF('1_Survey'!F28="Low-Average",0.45,IF('1_Survey'!F28="Average",0.66,IF('1_Survey'!F28="Average-High",0.82,1))))))),"Not Filled") -> Not Filled | N18: 0 | O18: 0 | P18: 0 | T18: 0 | U18: 1 | W18: =IF(G18="-",'4_DataSlave'!$K$2*Q18*-1,'4_DataSlave'!$K$2*Q18) ->  | X18: =IF(I18="-",'4_DataSlave'!$K$3*R18*-1,'4_DataSlave'!$K$3*R18) ->  | Y18: =IF(K18="-",'4_DataSlave'!$K$4*S18*-1,'4_DataSlave'!$K$4*S18) ->  | AD18: 0 | AE18: 0 | AF18: 0 | AG18: 0 | AL18: 0 | AM18: 1 | AS18: MedStock | AT18: MedStock | AU18: 0
A19: Module 2 - MANAGEMENT | B19: PEOPLE | C19: Staff & Equipment | D19: Storage of supplies | E19: Storage | F19: mp_supps | G19: ='3_WeightingAssistent'!AJ17 -> + | H19: ='3_WeightingAssistent'!AM17 -> 0.02051282051 | I19: ='3_WeightingAssistent'!AO17 -> - | J19: ='3_WeightingAssistent'!AR17 -> 0.003333333333 | K19: ='3_WeightingAssistent'!AT17 -> + | L19: ='3_WeightingAssistent'!AW17 -> 0.02066985646 | M19: =IF(ISBLANK('1_Survey'!F29)=FALSE,IF('1_Survey'!F29="N/A",10,IF('1_Survey'!F29="Zero",0,IF('1_Survey'!F29="Zero-Low",0.16,IF('1_Survey'!F29="Low",0.33,IF('1_Survey'!F29="Low-Average",0.45,IF('1_Survey'!F29="Average",0.66,IF('1_Survey'!F29="Average-High",0.82,1))))))),"Not Filled") -> Not Filled | N19: 0 | O19: 0 | P19: 0 | T19: 0 | U19: 1 | W19: =IF(G19="-",'4_DataSlave'!$K$2*Q19*-1,'4_DataSlave'!$K$2*Q19) ->  | X19: =IF(I19="-",'4_DataSlave'!$K$3*R19*-1,'4_DataSlave'!$K$3*R19) ->  | Y19: =IF(K19="-",'4_DataSlave'!$K$4*S19*-1,'4_DataSlave'!$K$4*S19) ->  | AD19: 0 | AE19: 0 | AF19: 0 | AG19: 0 | AL19: 0 | AM19: 1 | AS19: Storage | AT19: Storage | AU19: 0
A20: Module 2 - MANAGEMENT | B20: RELOCATION | C20: Re-Location | D20: Suitability of new location | E20: Relocation | F20: rl_reloc | G20: ='3_WeightingAssistent'!AJ18 -> + | H20: ='3_WeightingAssistent'!AM18 -> 0.01 | I20: ='3_WeightingAssistent'!AO18 -> + | J20: ='3_WeightingAssistent'!AR18 -> 0 | K20: ='3_WeightingAssistent'!AT18 -> + | L20: ='3_WeightingAssistent'!AW18 -> 0 | M20: =IF(ISBLANK('1_Survey'!F31)=FALSE,IF('1_Survey'!F31="N/A",10,IF('1_Survey'!F31="Zero",0,IF('1_Survey'!F31="Zero-Low",0.16,IF('1_Survey'!F31="Low",0.33,IF('1_Survey'!F31="Low-Average",0.45,IF('1_Survey'!F31="Average",0.66,IF('1_Survey'!F27="Average-High",0.82,1))))))),"Not Filled") -> Not Filled | N20: 0 | O20: 0 | P20: 0 | T20: 0 | U20: 0 | W20: =IF(G20="-",'4_DataSlave'!$K$2*Q20*-1,'4_DataSlave'!$K$2*Q20) ->  | X20: =IF(I20="-",'4_DataSlave'!$K$3*R20*-1,'4_DataSlave'!$K$3*R20) ->  | Y20: =IF(K20="-",'4_DataSlave'!$K$4*S20*-1,'4_DataSlave'!$K$4*S20) ->  | AD20: 0 | AE20: 0 | AF20: 0 | AG20: 0 | AL20: 0 | AM20: 1 | AS20: Relocation | AT20: Relocation | AU20: 0
A21: Module 2 - MANAGEMENT | B21: RELOCATION | C21: Re-Location | D21: Evacuation | E21: Reloc_Plan | F21: rl_evac | G21: ='3_WeightingAssistent'!AJ19 -> + | H21: ='3_WeightingAssistent'!AM19 -> 0.015 | I21: ='3_WeightingAssistent'!AO19 -> + | J21: ='3_WeightingAssistent'!AR19 -> 0 | K21: ='3_WeightingAssistent'!AT19 -> + | L21: ='3_WeightingAssistent'!AW19 -> 0 | M21: =IF(ISBLANK('1_Survey'!F32)=FALSE,IF('1_Survey'!F32="N/A",10,IF('1_Survey'!F32="Zero",0,IF('1_Survey'!F32="Zero-Low",0.16,IF('1_Survey'!F32="Low",0.33,IF('1_Survey'!F32="Low-Average",0.45,IF('1_Survey'!F32="Average",0.66,IF('1_Survey'!F32="Average-High",0.82,1))))))),"Not Filled") -> Not Filled | N21: 0 | O21: 0 | P21: 0 | T21: 0 | U21: 0 | W21: =IF(G21="-",'4_DataSlave'!$K$2*Q21*-1,'4_DataSlave'!$K$2*Q21) ->  | X21: =IF(I21="-",'4_DataSlave'!$K$3*R21*-1,'4_DataSlave'!$K$3*R21) ->  | Y21: =IF(K21="-",'4_DataSlave'!$K$4*S21*-1,'4_DataSlave'!$K$4*S21) ->  | AD21: 0 | AE21: 0 | AF21: 0 | AG21: 0 | AL21: 0 | AM21: 1 | AS21: Reloc_Plan | AT21: Reloc_Plan | AU21: 0
A22: Module 2 - MANAGEMENT | B22: ACCESS | C22: Access External | D22: Access routes | E22: Access | F22: ac_ac | G22: ='3_WeightingAssistent'!AJ20 -> + | H22: ='3_WeightingAssistent'!AM20 -> 0.01666666667 | I22: ='3_WeightingAssistent'!AO20 -> + | J22: ='3_WeightingAssistent'!AR20 -> 0.025 | K22: ='3_WeightingAssistent'!AT20 -> + | L22: ='3_WeightingAssistent'!AW20 -> 0.015 | M22: =IF(ISBLANK('1_Survey'!F34)=FALSE,IF('1_Survey'!F34="N/A",10,IF('1_Survey'!F34="Zero",0,IF('1_Survey'!F34="Zero-Low",0.16,IF('1_Survey'!F34="Low",0.33,IF('1_Survey'!F34="Low-Average",0.45,IF('1_Survey'!F34="Average",0.66,IF('1_Survey'!F34="Average-High",0.82,1))))))),"Not Filled") -> Not Filled | N22: 0 | O22: 0 | P22: 0 | T22: 0 | U22: 0 | W22: =IF(G22="-",'4_DataSlave'!$K$2*Q22*-1,'4_DataSlave'!$K$2*Q22) ->  | X22: =IF(I22="-",'4_DataSlave'!$K$3*R22*-1,'4_DataSlave'!$K$3*R22) ->  | Y22: =IF(K22="-",'4_DataSlave'!$K$4*S22*-1,'4_DataSlave'!$K$4*S22) ->  | AD22: 0 | AE22: 0 | AF22: 0 | AG22: 0 | AL22: 0 | AM22: 1 | AS22: Access | AT22: Access | AU22: 0
A23: Module 2 - MANAGEMENT | B23: ACCESS | C23: Access External | D23: Access of HC personnel and ambulances | E23: Ambulances | F23: ac_ambln | G23: ='3_WeightingAssistent'!AJ21 -> + | H23: ='3_WeightingAssistent'!AM21 -> 0.01666666667 | I23: ='3_WeightingAssistent'!AO21 -> + | J23: ='3_WeightingAssistent'!AR21 -> 0 | K23: ='3_WeightingAssistent'!AT21 -> + | L23: ='3_WeightingAssistent'!AW21 -> 0.01 | M23: =IF(ISBLANK('1_Survey'!F35)=FALSE,IF('1_Survey'!F35="N/A",10,IF('1_Survey'!F35="Zero",0,IF('1_Survey'!F35="Zero-Low",0.16,IF('1_Survey'!F35="Low",0.33,IF('1_Survey'!F35="Low-Average",0.45,IF('1_Survey'!F35="Average",0.66,IF('1_Survey'!F35="Average-High",0.82,1))))))),"Not Filled") -> Not Filled | N23: 0 | O23: 0 | P23: 0 | T23: 0 | U23: 1 | W23: =IF(G23="-",'4_DataSlave'!$K$2*Q23*-1,'4_DataSlave'!$K$2*Q23) ->  | X23: =IF(I23="-",'4_DataSlave'!$K$3*R23*-1,'4_DataSlave'!$K$3*R23) ->  | Y23: =IF(K23="-",'4_DataSlave'!$K$4*S23*-1,'4_DataSlave'!$K$4*S23) ->  | AD23: 0 | AE23: 0 | AF23: 0 | AG23: 0 | AL23: 0 | AM23: 1 | AS23: Ambulances | AT23: Ambulances | AU23: 0
A24: Module 2 - MANAGEMENT | B24: ACCESS | C24: Access External | D24: Secure supplier resources | E24: Supplier | F24: ac_suppr | G24: ='3_WeightingAssistent'!AJ22 -> + | H24: ='3_WeightingAssistent'!AM22 -> 0.01666666667 | I24: ='3_WeightingAssistent'!AO22 -> + | J24: ='3_WeightingAssistent'!AR22 -> 0 | K24: ='3_WeightingAssistent'!AT22 -> + | L24: ='3_WeightingAssistent'!AW22 -> 0.005 | M24: =IF(ISBLANK('1_Survey'!F36)=FALSE,IF('1_Survey'!F36="N/A",10,IF('1_Survey'!F36="Zero",0,IF('1_Survey'!F36="Zero-Low",0.16,IF('1_Survey'!F36="Low",0.33,IF('1_Survey'!F36="Low-Average",0.45,IF('1_Survey'!F36="Average",0.66,IF('1_Survey'!F36="Average-High",0.82,1))))))),"Not Filled") -> Not Filled | N24: 0 | O24: 0 | P24: 0 | T24: 0 | U24: 1 | W24: =IF(G24="-",'4_DataSlave'!$K$2*Q24*-1,'4_DataSlave'!$K$2*Q24) ->  | X24: =IF(I24="-",'4_DataSlave'!$K$3*R24*-1,'4_DataSlave'!$K$3*R24) ->  | Y24: =IF(K24="-",'4_DataSlave'!$K$4*S24*-1,'4_DataSlave'!$K$4*S24) ->  | AD24: 0 | AE24: 0 | AF24: 0 | AG24: 0 | AL24: 0 | AM24: 1 | AS24: Supplier | AT24: Supplier | AU24: 0
A25: Module 3 - INFRASTRUCTURE | B25: INFRASTRUCTURE | C25: Managing Access and Control Entries | D25: Lighting systems | E25: Lighting | F25: mc_light | G25: ='3_WeightingAssistent'!AJ23 -> + | H25: ='3_WeightingAssistent'!AM23 -> 0.01296296296 | I25: ='3_WeightingAssistent'!AO23 -> + | J25: ='3_WeightingAssistent'!AR23 -> 0.09130434783 | K25: ='3_WeightingAssistent'!AT23 -> + | L25: ='3_WeightingAssistent'!AW23 -> 0.03840877915 | M25: =IF(ISBLANK('1_Survey'!F38)=FALSE,IF('1_Survey'!F38="N/A",10,IF('1_Survey'!F38="Zero",0,IF('1_Survey'!F38="Zero-Low",0.16,IF('1_Survey'!F38="Low",0.33,IF('1_Survey'!F38="Low-Average",0.45,IF('1_Survey'!F38="Average",0.66,IF('1_Survey'!F38="Average-High",0.82,1))))))),"Not Filled") -> Not Filled | N25: 0 | O25: 0 | P25: 0 | T25: 0 | U25: 0 | W25: =IF(G25="-",'4_DataSlave'!$K$2*Q25*-1,'4_DataSlave'!$K$2*Q25) ->  | X25: =IF(I25="-",'4_DataSlave'!$K$3*R25*-1,'4_DataSlave'!$K$3*R25) ->  | Y25: =IF(K25="-",'4_DataSlave'!$K$4*S25*-1,'4_DataSlave'!$K$4*S25) ->  | AD25: 0 | AE25: 0 | AF25: 0 | AG25: 0 | AL25: 0 | AM25: 1 | AS25: Lighting | AT25: Lighting | AU25: 0
A26: Module 3 - INFRASTRUCTURE | B26: INFRASTRUCTURE | C26: Managing Access and Control Entries | D26: Safety of the perimeter fence | E26: Fence | F26: mc_fence | G26: ='3_WeightingAssistent'!AJ24 -> + | H26: ='3_WeightingAssistent'!AM24 -> 0.006481481481 | I26: ='3_WeightingAssistent'!AO24 -> + | J26: ='3_WeightingAssistent'!AR24 -> 0.09130434783 | K26: ='3_WeightingAssistent'!AT24 -> + | L26: ='3_WeightingAssistent'!AW24 -> 0.0768175583 | M26: =IF(ISBLANK('1_Survey'!F39)=FALSE,IF('1_Survey'!F39="N/A",10,IF('1_Survey'!F39="Zero",0,IF('1_Survey'!F39="Zero-Low",0.16,IF('1_Survey'!F39="Low",0.33,IF('1_Survey'!F39="Low-Average",0.45,IF('1_Survey'!F39="Average",0.66,IF('1_Survey'!F39="Average-High",0.82,1))))))),"Not Filled") -> Not Filled | N26: 0 | O26: 0 | P26: 0 | T26: 0 | U26: 0 | W26: =IF(G26="-",'4_DataSlave'!$K$2*Q26*-1,'4_DataSlave'!$K$2*Q26) ->  | X26: =IF(I26="-",'4_DataSlave'!$K$3*R26*-1,'4_DataSlave'!$K$3*R26) ->  | Y26: =IF(K26="-",'4_DataSlave'!$K$4*S26*-1,'4_DataSlave'!$K$4*S26) ->  | AD26: 0 | AE26: 0 | AF26: 0 | AG26: 0 | AL26: 0 | AM26: 1 | AS26: Fence | AT26: Fence | AU26: 0
A27: Module 3 - INFRASTRUCTURE | B27: INFRASTRUCTURE | C27: Managing Access and Control Entries | D27: Gates and entrances | E27: Gates | F27: mc_gates | G27: ='3_WeightingAssistent'!AJ25 -> + | H27: ='3_WeightingAssistent'!AM25 -> 0.006481481481 | I27: ='3_WeightingAssistent'!AO25 -> + | J27: ='3_WeightingAssistent'!AR25 -> 0.09130434783 | K27: ='3_WeightingAssistent'!AT25 -> + | L27: ='3_WeightingAssistent'!AW25 -> 0.05761316872 | M27: =IF(ISBLANK('1_Survey'!F40)=FALSE,IF('1_Survey'!F40="N/A",10,IF('1_Survey'!F40="Zero",0,IF('1_Survey'!F40="Zero-Low",0.16,IF('1_Survey'!F40="Low",0.33,IF('1_Survey'!F40="Low-Average",0.45,IF('1_Survey'!F40="Average",0.66,IF('1_Survey'!F40="Average-High",0.82,1))))))),"Not Filled") -> Not Filled | N27: 0 | O27: 0 | P27: 0 | T27: 0 | U27: 0 | W27: =IF(G27="-",'4_DataSlave'!$K$2*Q27*-1,'4_DataSlave'!$K$2*Q27) ->  | X27: =IF(I27="-",'4_DataSlave'!$K$3*R27*-1,'4_DataSlave'!$K$3*R27) ->  | Y27: =IF(K27="-",'4_DataSlave'!$K$4*S27*-1,'4_DataSlave'!$K$4*S27) ->  | AD27: 0 | AE27: 0 | AF27: 0 | AG27: 0 | AL27: 0 | AM27: 1 | AS27: Gates | AT27: Gates | AU27: 0
A28: Module 3 - INFRASTRUCTURE | B28: INFRASTRUCTURE | C28: Structure | D28: Conditions | E28: Condition | F28: st_cond | G28: ='3_WeightingAssistent'!AJ26 -> + | H28: ='3_WeightingAssistent'!AM26 -> 0 | I28: ='3_WeightingAssistent'!AO26 -> + | J28: ='3_WeightingAssistent'!AR26 -> 0.03043478261 | K28: ='3_WeightingAssistent'!AT26 -> - | L28: ='3_WeightingAssistent'!AW26 -> 0.008641975309 | M28: =IF(ISBLANK('1_Survey'!F42)=FALSE,IF('1_Survey'!F42="N/A",10,IF('1_Survey'!F42="Zero",0,IF('1_Survey'!F42="Zero-Low",0.16,IF('1_Survey'!F42="Low",0.33,IF('1_Survey'!F42="Low-Average",0.45,IF('1_Survey'!F42="Average",0.66,IF('1_Survey'!F42="Average-High",0.82,1))))))),"Not Filled") -> Not Filled | N28: 0 | O28: 0 | P28: 0 | T28: 0 | U28: 0 | W28: =IF(G28="-",'4_DataSlave'!$K$2*Q28*-1,'4_DataSlave'!$K$2*Q28) ->  | X28: =IF(I28="-",'4_DataSlave'!$K$3*R28*-1,'4_DataSlave'!$K$3*R28) ->  | Y28: =IF(K28="-",'4_DataSlave'!$K$4*S28*-1,'4_DataSlave'!$K$4*S28) ->  | AD28: 0 | AE28: 0 | AF28: 0 | AG28: 0 | AL28: 0 | AM28: 1 | AS28: Condition | AT28: Condition | AU28: 0
A29: Module 3 - INFRASTRUCTURE | B29: INFRASTRUCTURE | C29: Structure | D29: Structural Integrity | E29: Integrity | F29: st_intgr | G29: ='3_WeightingAssistent'!AJ27 -> + | H29: ='3_WeightingAssistent'!AM27 -> 0.05185185185 | I29: ='3_WeightingAssistent'!AO27 -> + | J29: ='3_WeightingAssistent'!AR27 -> 0 | K29: ='3_WeightingAssistent'!AT27 -> + | L29: ='3_WeightingAssistent'!AW27 -> 0 | M29: =IF(ISBLANK('1_Survey'!F43)=FALSE,IF('1_Survey'!F43="N/A",10,IF('1_Survey'!F43="Zero",0,IF('1_Survey'!F43="Zero-Low",0.16,IF('1_Survey'!F43="Low",0.33,IF('1_Survey'!F43="Low-Average",0.45,IF('1_Survey'!F43="Average",0.66,IF('1_Survey'!F43="Average-High",0.82,1))))))),"Not Filled") -> Not Filled | N29: 0 | O29: 0 | P29: 0 | T29: 0 | U29: 0 | W29: =IF(G29="-",'4_DataSlave'!$K$2*Q29*-1,'4_DataSlave'!$K$2*Q29) ->  | X29: =IF(I29="-",'4_DataSlave'!$K$3*R29*-1,'4_DataSlave'!$K$3*R29) ->  | Y29: =IF(K29="-",'4_DataSlave'!$K$4*S29*-1,'4_DataSlave'!$K$4*S29) ->  | AD29: 0 | AE29: 0 | AF29: 0 | AG29: 0 | AL29: 0 | AM29: 1 | AS29: Integrity | AT29: Integrity | AU29: 0
A30: Module 3 - INFRASTRUCTURE | B30: INFRASTRUCTURE | C30: Structure | D30: Structure Material | E30: Material | F30: st_stmsr | G30: ='3_WeightingAssistent'!AJ28 -> + | H30: ='3_WeightingAssistent'!AM28 -> 0.02592592593 | I30: ='3_WeightingAssistent'!AO28 -> + | J30: ='3_WeightingAssistent'!AR28 -> 0 | K30: ='3_WeightingAssistent'!AT28 -> + | L30: ='3_WeightingAssistent'!AW28 -> 0 | M30: =IF(ISBLANK('1_Survey'!F44)=FALSE,IF('1_Survey'!F44="N/A",10,IF('1_Survey'!F44="Zero",0,IF('1_Survey'!F44="Zero-Low",0.16,IF('1_Survey'!F44="Low",0.33,IF('1_Survey'!F44="Low-Average",0.45,IF('1_Survey'!F44="Average",0.66,IF('1_Survey'!F44="Average-High",0.82,1))))))),"Not Filled") -> Not Filled | N30: 0 | O30: 0 | P30: 0 | T30: 0 | U30: 0 | W30: =IF(G30="-",'4_DataSlave'!$K$2*Q30*-1,'4_DataSlave'!$K$2*Q30) ->  | X30: =IF(I30="-",'4_DataSlave'!$K$3*R30*-1,'4_DataSlave'!$K$3*R30) ->  | Y30: =IF(K30="-",'4_DataSlave'!$K$4*S30*-1,'4_DataSlave'!$K$4*S30) ->  | AD30: 0 | AE30: 0 | AF30: 0 | AG30: 0 | AL30: 0 | AM30: 1 | AS30: Material | AT30: Material | AU30: 0
A31: Module 3 - INFRASTRUCTURE | B31: INFRASTRUCTURE | C31: Structure | D31: Reinforce critical structure element | E31: Passive_Sec | F31: st_mat | G31: ='3_WeightingAssistent'!AJ29 -> + | H31: ='3_WeightingAssistent'!AM29 -> 0.07777777778 | I31: ='3_WeightingAssistent'!AO29 -> + | J31: ='3_WeightingAssistent'!AR29 -> 0.03043478261 | K31: ='3_WeightingAssistent'!AT29 -> + | L31: ='3_WeightingAssistent'!AW29 -> 0 | M31: =IF(ISBLANK('1_Survey'!F45)=FALSE,IF('1_Survey'!F45="N/A",10,IF('1_Survey'!F45="Zero",0,IF('1_Survey'!F45="Zero-Low",0.16,IF('1_Survey'!F45="Low",0.33,IF('1_Survey'!F45="Low-Average",0.45,IF('1_Survey'!F45="Average",0.66,IF('1_Survey'!F45="Average-High",0.82,1))))))),"Not Filled") -> Not Filled | N31: 0 | O31: 0 | P31: 0 | T31: 0 | U31: 0 | W31: =IF(G31="-",'4_DataSlave'!$K$2*Q31*-1,'4_DataSlave'!$K$2*Q31) ->  | X31: =IF(I31="-",'4_DataSlave'!$K$3*R31*-1,'4_DataSlave'!$K$3*R31) ->  | Y31: =IF(K31="-",'4_DataSlave'!$K$4*S31*-1,'4_DataSlave'!$K$4*S31) ->  | AD31: 0 | AE31: 0 | AF31: 0 | AG31: 0 | AL31: 0 | AM31: 1 | AS31: Passive_Sec | AT31: Passive_Sec | AU31: 0
A32: Module 3 - INFRASTRUCTURE | B32: INFRASTRUCTURE | C32: Layout : space arrangements | D32: Distribution operational priority areas | E32: Priority areas | F32: ly_distr | G32: ='3_WeightingAssistent'!AJ30 -> + | H32: ='3_WeightingAssistent'!AM30 -> 0.05656565657 | I32: ='3_WeightingAssistent'!AO30 -> + | J32: ='3_WeightingAssistent'!AR30 -> 0.02173913043 | K32: ='3_WeightingAssistent'!AT30 -> + | L32: ='3_WeightingAssistent'!AW30 -> 0.04938271605 | M32: =IF(ISBLANK('1_Survey'!F47)=FALSE,IF('1_Survey'!F47="N/A",10,IF('1_Survey'!F47="Zero",0,IF('1_Survey'!F47="Zero-Low",0.16,IF('1_Survey'!F47="Low",0.33,IF('1_Survey'!F47="Low-Average",0.45,IF('1_Survey'!F47="Average",0.66,IF('1_Survey'!F47="Average-High",0.82,1))))))),"Not Filled") -> Not Filled | N32: 0 | O32: 0 | P32: 0 | T32: 0 | U32: 0 | W32: =IF(G32="-",'4_DataSlave'!$K$2*Q32*-1,'4_DataSlave'!$K$2*Q32) ->  | X32: =IF(I32="-",'4_DataSlave'!$K$3*R32*-1,'4_DataSlave'!$K$3*R32) ->  | Y32: =IF(K32="-",'4_DataSlave'!$K$4*S32*-1,'4_DataSlave'!$K$4*S32) ->  | AD32: 0 | AE32: 0 | AF32: 0 | AG32: 0 | AL32: 0 | AM32: 1 | AS32: Priority areas | AT32: Priority areas | AU32: 0
A33: Module 3 - INFRASTRUCTURE | B33: INFRASTRUCTURE | C33: Layout : space arrangements | D33: Concentrated vs. Spread | E33: Layout | F33: ly_spr | G33: ='3_WeightingAssistent'!AJ31 -> - | H33: ='3_WeightingAssistent'!AM31 -> 0.1131313131 | I33: ='3_WeightingAssistent'!AO31 -> + | J33: ='3_WeightingAssistent'!AR31 -> 0.04347826087 | K33: ='3_WeightingAssistent'!AT31 -> + | L33: ='3_WeightingAssistent'!AW31 -> 0 | M33: =IF(ISBLANK('1_Survey'!F48)=FALSE,IF('1_Survey'!F48="N/A",10,IF('1_Survey'!F48="Zero",0,IF('1_Survey'!F48="Zero-Low",0.16,IF('1_Survey'!F48="Low",0.33,IF('1_Survey'!F48="Low-Average",0.45,IF('1_Survey'!F48="Average",0.66,IF('1_Survey'!F48="Average-High",0.82,1))))))),"Not Filled") -> Not Filled | N33: 0 | O33: 0 | P33: 0 | S33: =IF($M33<>10,L33+$P$52,0) ->  | T33: 1 | U33: 0 | W33: =IF(G33="-",'4_DataSlave'!$K$2*Q33*-1,'4_DataSlave'!$K$2*Q33) ->  | X33: =IF(I33="-",'4_DataSlave'!$K$3*R33*-1,'4_DataSlave'!$K$3*R33) ->  | Y33: =IF(K33="-",'4_DataSlave'!$K$4*S33*-1,'4_DataSlave'!$K$4*S33) ->  | Z33: 0 | AC33: =SUM(Z33:AB33) ->  | AD33: 0 | AE33: 0 | AF33: 0 | AG33: 0 | AL33: 0 | AM33: 1 | AS33: Layout | AT33: Layout | AU33: 0
A34: Module 3 - INFRASTRUCTURE | B34: INFRASTRUCTURE | C34: Layout : space arrangements | D34: Existence of free space | E34: Free space | F34: ly_brea | G34: ='3_WeightingAssistent'!AJ32 -> + | H34: ='3_WeightingAssistent'!AM32 -> 0.03771043771 | I34: ='3_WeightingAssistent'!AO32 -> + | J34: ='3_WeightingAssistent'!AR32 -> 0 | K34: ='3_WeightingAssistent'!AT32 -> + | L34: ='3_WeightingAssistent'!AW32 -> 0.0987654321 | M34: =IF(ISBLANK('1_Survey'!F49)=FALSE,IF('1_Survey'!F49="N/A",10,IF('1_Survey'!F49="Zero",0,IF('1_Survey'!F49="Zero-Low",0.16,IF('1_Survey'!F49="Low",0.33,IF('1_Survey'!F49="Low-Average",0.45,IF('1_Survey'!F49="Average",0.66,IF('1_Survey'!F49="Average-High",0.82,1))))))),"Not Filled") -> Not Filled | N34: 0 | O34: 0 | P34: 0 | T34: 0 | U34: 0 | W34: =IF(G34="-",'4_DataSlave'!$K$2*Q34*-1,'4_DataSlave'!$K$2*Q34) ->  | X34: =IF(I34="-",'4_DataSlave'!$K$3*R34*-1,'4_DataSlave'!$K$3*R34) ->  | Y34: =IF(K34="-",'4_DataSlave'!$K$4*S34*-1,'4_DataSlave'!$K$4*S34) ->  | AC34: =SUM(Z34:AB34) ->  | AD34: 0 | AE34: 0 | AF34: 0 | AG34: 0 | AL34: 0 | AM34: 1 | AS34: Free space | AT34: Free space | AU34: 0
A35: Module 3 - INFRASTRUCTURE | B35: INFRASTRUCTURE | C35: Layout : space arrangements | D35: Location of valuable assests | E35: Valuable assets | F35: ly_valbl | G35: ='3_WeightingAssistent'!AJ33 -> + | H35: ='3_WeightingAssistent'!AM33 -> 0 | I35: ='3_WeightingAssistent'!AO33 -> + | J35: ='3_WeightingAssistent'!AR33 -> 0.08695652174 | K35: ='3_WeightingAssistent'!AT33 -> + | L35: ='3_WeightingAssistent'!AW33 -> 0.02469135802 | M35: =IF(ISBLANK('1_Survey'!F50)=FALSE,IF('1_Survey'!F50="N/A",10,IF('1_Survey'!F50="Zero",0,IF('1_Survey'!F50="Zero-Low",0.16,IF('1_Survey'!F50="Low",0.33,IF('1_Survey'!F50="Low-Average",0.45,IF('1_Survey'!F50="Average",0.66,IF('1_Survey'!F50="Average-High",0.82,1))))))),"Not Filled") -> Not Filled | N35: 0 | O35: 0 | P35: 0 | T35: 0 | U35: 0 | W35: =IF(G35="-",'4_DataSlave'!$K$2*Q35*-1,'4_DataSlave'!$K$2*Q35) ->  | X35: =IF(I35="-",'4_DataSlave'!$K$3*R35*-1,'4_DataSlave'!$K$3*R35) ->  | Y35: =IF(K35="-",'4_DataSlave'!$K$4*S35*-1,'4_DataSlave'!$K$4*S35) ->  | AD35: 0 | AE35: 0 | AF35: 0 | AG35: 0 | AL35: 0 | AM35: 1 | AS35: Valuable assets | AT35: Valuable assets | AU35: 0
A36: Module 3 - INFRASTRUCTURE | B36: INFRASTRUCTURE | C36: Exposure to external threaths | D36: Opening: windows | E36: Windows | F36: xp_wndws | G36: ='3_WeightingAssistent'!AJ34 -> + | H36: ='3_WeightingAssistent'!AM34 -> 0.02592592593 | I36: ='3_WeightingAssistent'!AO34 -> + | J36: ='3_WeightingAssistent'!AR34 -> 0.05410628019 | K36: ='3_WeightingAssistent'!AT34 -> + | L36: ='3_WeightingAssistent'!AW34 -> 0.007201646091 | M36: =IF(ISBLANK('1_Survey'!F52)=FALSE,IF('1_Survey'!F52="N/A",10,IF('1_Survey'!F52="Zero",0,IF('1_Survey'!F52="Zero-Low",0.16,IF('1_Survey'!F52="Low",0.33,IF('1_Survey'!F52="Low-Average",0.45,IF('1_Survey'!F52="Average",0.66,IF('1_Survey'!F52="Average-High",0.82,1))))))),"Not Filled") -> Not Filled | N36: 0 | O36: 0 | P36: 0 | T36: 0 | U36: 0 | W36: =IF(G36="-",'4_DataSlave'!$K$2*Q36*-1,'4_DataSlave'!$K$2*Q36) ->  | X36: =IF(I36="-",'4_DataSlave'!$K$3*R36*-1,'4_DataSlave'!$K$3*R36) ->  | Y36: =IF(K36="-",'4_DataSlave'!$K$4*S36*-1,'4_DataSlave'!$K$4*S36) ->  | AD36: 0 | AE36: 0 | AF36: 0 | AG36: 0 | AL36: 0 | AM36: 1 | AS36: Windows | AT36: Windows | AU36: 0
A37: Module 3 - INFRASTRUCTURE | B37: INFRASTRUCTURE | C37: Exposure to external threaths | D37: Opening: doors | E37: Doors | F37: xp_doors | G37: ='3_WeightingAssistent'!AJ35 -> + | H37: ='3_WeightingAssistent'!AM35 -> 0.03888888889 | I37: ='3_WeightingAssistent'!AO35 -> + | J37: ='3_WeightingAssistent'!AR35 -> 0.0270531401 | K37: ='3_WeightingAssistent'!AT35 -> + | L37: ='3_WeightingAssistent'!AW35 -> 0.01440329218 | M37: =IF(ISBLANK('1_Survey'!F53)=FALSE,IF('1_Survey'!F53="N/A",10,IF('1_Survey'!F53="Zero",0,IF('1_Survey'!F53="Zero-Low",0.16,IF('1_Survey'!F53="Low",0.33,IF('1_Survey'!F53="Low-Average",0.45,IF('1_Survey'!F53="Average",0.66,IF('1_Survey'!F53="Average-High",0.82,1))))))),"Not Filled") -> Not Filled | N37: 0 | O37: 0 | P37: 0 | T37: 0 | U37: 0 | W37: =IF(G37="-",'4_DataSlave'!$K$2*Q37*-1,'4_DataSlave'!$K$2*Q37) ->  | X37: =IF(I37="-",'4_DataSlave'!$K$3*R37*-1,'4_DataSlave'!$K$3*R37) ->  | Y37: =IF(K37="-",'4_DataSlave'!$K$4*S37*-1,'4_DataSlave'!$K$4*S37) ->  | AD37: 0 | AE37: 0 | AF37: 0 | AG37: 0 | AL37: 0 | AM37: 1 | AS37: Doors | AT37: Doors | AU37: 0
A38: Module 3 - INFRASTRUCTURE | B38: INFRASTRUCTURE | C38: Exposure to external threaths | D38: Opening exposure | E38: Exposure | F38: xp_expsr | G38: ='3_WeightingAssistent'!AJ36 -> + | H38: ='3_WeightingAssistent'!AM36 -> 0.01296296296 | I38: ='3_WeightingAssistent'!AO36 -> + | J38: ='3_WeightingAssistent'!AR36 -> 0.0270531401 | K38: ='3_WeightingAssistent'!AT36 -> + | L38: ='3_WeightingAssistent'!AW36 -> 0.01440329218 | M38: =IF(ISBLANK('1_Survey'!F54)=FALSE,IF('1_Survey'!F54="N/A",10,IF('1_Survey'!F54="Zero",0,IF('1_Survey'!F54="Zero-Low",0.16,IF('1_Survey'!F54="Low",0.33,IF('1_Survey'!F54="Low-Average",0.45,IF('1_Survey'!F54="Average",0.66,IF('1_Survey'!F54="Average-High",0.82,1))))))),"Not Filled") -> Not Filled | N38: 0 | O38: 0 | P38: 0 | T38: 0 | U38: 0 | W38: =IF(G38="-",'4_DataSlave'!$K$2*Q38*-1,'4_DataSlave'!$K$2*Q38) ->  | X38: =IF(I38="-",'4_DataSlave'!$K$3*R38*-1,'4_DataSlave'!$K$3*R38) ->  | Y38: =IF(K38="-",'4_DataSlave'!$K$4*S38*-1,'4_DataSlave'!$K$4*S38) ->  | AD38: 0 | AE38: 0 | AF38: 0 | AG38: 0 | AL38: 0 | AM38: 1 | AS38: Exposure | AT38: Exposure | AU38: 0
A39: Module 3 - INFRASTRUCTURE | B39: INFRASTRUCTURE | C39: Exposure to external threaths | D39: Standoff distance | E39: Standoff | F39: xp_stnf | G39: ='3_WeightingAssistent'!AJ37 -> + | H39: ='3_WeightingAssistent'!AM37 -> 0.02592592593 | I39: ='3_WeightingAssistent'!AO37 -> + | J39: ='3_WeightingAssistent'!AR37 -> 0 | K39: ='3_WeightingAssistent'!AT37 -> + | L39: ='3_WeightingAssistent'!AW37 -> 0 | M39: =IF(ISBLANK('1_Survey'!F55)=FALSE,IF('1_Survey'!F55="N/A",10,IF('1_Survey'!F55="Zero",0,IF('1_Survey'!F55="Zero-Low",0.16,IF('1_Survey'!F55="Low",0.33,IF('1_Survey'!F55="Low-Average",0.45,IF('1_Survey'!F55="Average",0.66,IF('1_Survey'!F55="Average-High",0.82,1))))))),"Not Filled") -> Not Filled | N39: 0 | O39: 0 | P39: 0 | T39: 0 | U39: 0 | W39: =IF(G39="-",'4_DataSlave'!$K$2*Q39*-1,'4_DataSlave'!$K$2*Q39) ->  | X39: =IF(I39="-",'4_DataSlave'!$K$3*R39*-1,'4_DataSlave'!$K$3*R39) ->  | Y39: =IF(K39="-",'4_DataSlave'!$K$4*S39*-1,'4_DataSlave'!$K$4*S39) ->  | AD39: 0 | AE39: 0 | AF39: 0 | AG39: 0 | AL39: 0 | AM39: 1 | AS39: Standoff | AT39: Standoff | AU39: 0
A40: Module 3 - INFRASTRUCTURE | B40: INFRASTRUCTURE | C40: Exposure to external threaths | D40: Internal fencing | E40: Int_fence | F40: xp_infnc | G40: ='3_WeightingAssistent'!AJ38 -> + | H40: ='3_WeightingAssistent'!AM38 -> 0 | I40: ='3_WeightingAssistent'!AO38 -> + | J40: ='3_WeightingAssistent'!AR38 -> 0.01352657005 | K40: ='3_WeightingAssistent'!AT38 -> + | L40: ='3_WeightingAssistent'!AW38 -> 0.007201646091 | M40: =IF(ISBLANK('1_Survey'!F56)=FALSE,IF('1_Survey'!F56="N/A",10,IF('1_Survey'!F56="Zero",0,IF('1_Survey'!F56="Zero-Low",0.16,IF('1_Survey'!F56="Low",0.33,IF('1_Survey'!F56="Low-Average",0.45,IF('1_Survey'!F56="Average",0.66,IF('1_Survey'!F56="Average-High",0.82,1))))))),"Not Filled") -> Not Filled | N40: 0 | O40: 0 | P40: 0 | T40: 0 | U40: 0 | W40: =IF(G40="-",'4_DataSlave'!$K$2*Q40*-1,'4_DataSlave'!$K$2*Q40) ->  | X40: =IF(I40="-",'4_DataSlave'!$K$3*R40*-1,'4_DataSlave'!$K$3*R40) ->  | Y40: =IF(K40="-",'4_DataSlave'!$K$4*S40*-1,'4_DataSlave'!$K$4*S40) ->  | AD40: 0 | AE40: 0 | AF40: 0 | AG40: 0 | AL40: 0 | AM40: 1 | AS40: Int_fence | AT40: Int_fence | AU40: 0
A41: Module 3 - INFRASTRUCTURE | B41: INFRASTRUCTURE | C41: Internal Circulation | D41: Safety of mouvements | E41: Movement | F41: ic_movs | G41: ='3_WeightingAssistent'!AJ39 -> + | H41: ='3_WeightingAssistent'!AM39 -> 0.01481481481 | I41: ='3_WeightingAssistent'!AO39 -> - | J41: ='3_WeightingAssistent'!AR39 -> 0.0152173913 | K41: ='3_WeightingAssistent'!AT39 -> + | L41: ='3_WeightingAssistent'!AW39 -> 0.06913580247 | M41: =IF(ISBLANK('1_Survey'!F58)=FALSE,IF('1_Survey'!F58="N/A",10,IF('1_Survey'!F58="Zero",0,IF('1_Survey'!F58="Zero-Low",0.16,IF('1_Survey'!F58="Low",0.33,IF('1_Survey'!F58="Low-Average",0.45,IF('1_Survey'!F58="Average",0.66,IF('1_Survey'!F58="Average-High",0.82,1))))))),"Not Filled") -> Not Filled | N41: 0 | O41: 0 | P41: 0 | T41: 1 | U41: 0 | W41: =IF(G41="-",'4_DataSlave'!$K$2*Q41*-1,'4_DataSlave'!$K$2*Q41) ->  | X41: =IF(I41="-",'4_DataSlave'!$K$3*R41*-1,'4_DataSlave'!$K$3*R41) ->  | Y41: =IF(K41="-",'4_DataSlave'!$K$4*S41*-1,'4_DataSlave'!$K$4*S41) ->  | AA41: 0 | AD41: 0 | AE41: 0 | AF41: 0 | AG41: 0 | AL41: 0 | AM41: 1 | AS41: Movement | AT41: Movement | AU41: 0
A42: Module 3 - INFRASTRUCTURE | B42: INFRASTRUCTURE | C42: Internal Circulation | D42: Safety of stairways | E42: Stairs | F42: ic_stair | G42: ='3_WeightingAssistent'!AJ40 -> + | H42: ='3_WeightingAssistent'!AM40 -> 0.01481481481 | I42: ='3_WeightingAssistent'!AO40 -> + | J42: ='3_WeightingAssistent'!AR40 -> 0 | K42: ='3_WeightingAssistent'!AT40 -> + | L42: ='3_WeightingAssistent'!AW40 -> 0.03456790123 | M42: =IF(ISBLANK('1_Survey'!F59)=FALSE,IF('1_Survey'!F59="N/A",10,IF('1_Survey'!F59="Zero",0,IF('1_Survey'!F59="Zero-Low",0.16,IF('1_Survey'!F59="Low",0.33,IF('1_Survey'!F59="Low-Average",0.45,IF('1_Survey'!F59="Average",0.66,IF('1_Survey'!F59="Average-High",0.82,1))))))),"Not Filled") -> Not Filled | N42: 0 | O42: 0 | P42: 0 | T42: 0 | U42: 0 | W42: =IF(G42="-",'4_DataSlave'!$K$2*Q42*-1,'4_DataSlave'!$K$2*Q42) ->  | X42: =IF(I42="-",'4_DataSlave'!$K$3*R42*-1,'4_DataSlave'!$K$3*R42) ->  | Y42: =IF(K42="-",'4_DataSlave'!$K$4*S42*-1,'4_DataSlave'!$K$4*S42) ->  | AD42: 0 | AE42: 0 | AF42: 0 | AG42: 0 | AL42: 0 | AM42: 1 | AS42: Stairs | AT42: Stairs | AU42: 0
A43: Module 3 - INFRASTRUCTURE | B43: INFRASTRUCTURE | C43: Internal Circulation | D43: Safety of elevator system | E43: Elevators | F43: ic_elev | G43: ='3_WeightingAssistent'!AJ41 -> + | H43: ='3_WeightingAssistent'!AM41 -> 0.007407407407 | I43: ='3_WeightingAssistent'!AO41 -> + | J43: ='3_WeightingAssistent'!AR41 -> 0 | K43: ='3_WeightingAssistent'!AT41 -> + | L43: ='3_WeightingAssistent'!AW41 -> 0.03456790123 | M43: =IF(ISBLANK('1_Survey'!F60)=FALSE,IF('1_Survey'!F60="N/A",10,IF('1_Survey'!F60="Zero",0,IF('1_Survey'!F60="Zero-Low",0.16,IF('1_Survey'!F60="Low",0.33,IF('1_Survey'!F60="Low-Average",0.45,IF('1_Survey'!F60="Average",0.66,IF('1_Survey'!F60="Average-High",0.82,1))))))),"Not Filled") -> Not Filled | N43: 0 | O43: 0 | P43: 0 | T43: 0 | U43: 0 | W43: =IF(G43="-",'4_DataSlave'!$K$2*Q43*-1,'4_DataSlave'!$K$2*Q43) ->  | X43: =IF(I43="-",'4_DataSlave'!$K$3*R43*-1,'4_DataSlave'!$K$3*R43) ->  | Y43: =IF(K43="-",'4_DataSlave'!$K$4*S43*-1,'4_DataSlave'!$K$4*S43) ->  | AD43: 0 | AE43: 0 | AF43: 0 | AG43: 0 | AL43: 0 | AM43: 1 | AS43: Elevators | AT43: Elevators | AU43: 0
A44: Module 3 - INFRASTRUCTURE | B44: INFRASTRUCTURE | C44: Internal Circulation | D44: Evacuation routes | E44: Evacuation | F44: ic_exits | G44: ='3_WeightingAssistent'!AJ42 -> + | H44: ='3_WeightingAssistent'!AM42 -> 0.01481481481 | I44: ='3_WeightingAssistent'!AO42 -> + | J44: ='3_WeightingAssistent'!AR42 -> 0.04565217391 | K44: ='3_WeightingAssistent'!AT42 -> + | L44: ='3_WeightingAssistent'!AW42 -> 0.03456790123 | M44: =IF(ISBLANK('1_Survey'!F61)=FALSE,IF('1_Survey'!F61="N/A",10,IF('1_Survey'!F61="Zero",0,IF('1_Survey'!F61="Zero-Low",0.16,IF('1_Survey'!F61="Low",0.33,IF('1_Survey'!F61="Low-Average",0.45,IF('1_Survey'!F61="Average",0.66,IF('1_Survey'!F61="Average-High",0.82,1))))))),"Not Filled") -> Not Filled | N44: 0 | O44: 0 | P44: 0 | T44: 0 | U44: 0 | W44: =IF(G44="-",'4_DataSlave'!$K$2*Q44*-1,'4_DataSlave'!$K$2*Q44) ->  | X44: =IF(I44="-",'4_DataSlave'!$K$3*R44*-1,'4_DataSlave'!$K$3*R44) ->  | Y44: =IF(K44="-",'4_DataSlave'!$K$4*S44*-1,'4_DataSlave'!$K$4*S44) ->  | AD44: 0 | AE44: 0 | AF44: 0 | AG44: 0 | AL44: 0 | AM44: 1 | AS44: Evacuation | AT44: Evacuation | AU44: 0
A45: Module 3 - INFRASTRUCTURE | B45: INFRASTRUCTURE | C45: Self-sufficiency | D45: Safety of telecommmunication system | E45: Telecom | F45: ss_tel | G45: ='3_WeightingAssistent'!AJ43 -> + | H45: ='3_WeightingAssistent'!AM43 -> 0.03111111111 | I45: ='3_WeightingAssistent'!AO43 -> + | J45: ='3_WeightingAssistent'!AR43 -> 0.03043478261 | K45: ='3_WeightingAssistent'!AT43 -> + | L45: ='3_WeightingAssistent'!AW43 -> 0.02160493827 | M45: =IF(ISBLANK('1_Survey'!F63)=FALSE,IF('1_Survey'!F63="N/A",10,IF('1_Survey'!F63="Zero",0,IF('1_Survey'!F63="Zero-Low",0.16,IF('1_Survey'!F63="Low",0.33,IF('1_Survey'!F63="Low-Average",0.45,IF('1_Survey'!F63="Average",0.66,IF('1_Survey'!F63="Average-High",0.82,1))))))),"Not Filled") -> Not Filled | N45: 0 | O45: 0 | P45: 0 | T45: 0 | U45: 1 | W45: =IF(G45="-",'4_DataSlave'!$K$2*Q45*-1,'4_DataSlave'!$K$2*Q45) ->  | X45: =IF(I45="-",'4_DataSlave'!$K$3*R45*-1,'4_DataSlave'!$K$3*R45) ->  | Y45: =IF(K45="-",'4_DataSlave'!$K$4*S45*-1,'4_DataSlave'!$K$4*S45) ->  | AD45: 0 | AE45: 0 | AF45: 0 | AG45: 0 | AL45: 0 | AM45: 1 | AS45: Telecom | AT45: Telecom | AU45: 0
A46: Module 3 - INFRASTRUCTURE | B46: INFRASTRUCTURE | C46: Self-sufficiency | D46: Safety of water system | E46: Water | F46: ss_water | G46: ='3_WeightingAssistent'!AJ44 -> + | H46: ='3_WeightingAssistent'!AM44 -> 0.02074074074 | I46: ='3_WeightingAssistent'!AO44 -> + | J46: ='3_WeightingAssistent'!AR44 -> 0 | K46: ='3_WeightingAssistent'!AT44 -> + | L46: ='3_WeightingAssistent'!AW44 -> 0.01080246914 | M46: =IF(ISBLANK('1_Survey'!F64)=FALSE,IF('1_Survey'!F64="N/A",10,IF('1_Survey'!F64="Zero",0,IF('1_Survey'!F64="Zero-Low",0.16,IF('1_Survey'!F64="Low",0.33,IF('1_Survey'!F64="Low-Average",0.45,IF('1_Survey'!F64="Average",0.66,IF('1_Survey'!F64="Average-High",0.82,1))))))),"Not Filled") -> Not Filled | N46: 0 | O46: 0 | P46: 0 | T46: 0 | U46: 1 | W46: =IF(G46="-",'4_DataSlave'!$K$2*Q46*-1,'4_DataSlave'!$K$2*Q46) ->  | X46: =IF(I46="-",'4_DataSlave'!$K$3*R46*-1,'4_DataSlave'!$K$3*R46) ->  | Y46: =IF(K46="-",'4_DataSlave'!$K$4*S46*-1,'4_DataSlave'!$K$4*S46) ->  | AD46: 0 | AE46: 0 | AF46: 0 | AG46: 0 | AL46: 0 | AM46: 1 | AS46: Water | AT46: Water | AU46: 0
A47: Module 3 - INFRASTRUCTURE | B47: INFRASTRUCTURE | C47: Self-sufficiency | D47: Safety of electrical system | E47: Electrical | F47: ss_elect | G47: ='3_WeightingAssistent'!AJ45 -> + | H47: ='3_WeightingAssistent'!AM45 -> 0.04148148148 | I47: ='3_WeightingAssistent'!AO45 -> + | J47: ='3_WeightingAssistent'!AR45 -> 0 | K47: ='3_WeightingAssistent'!AT45 -> + | L47: ='3_WeightingAssistent'!AW45 -> 0.03240740741 | M47: =IF(ISBLANK('1_Survey'!F65)=FALSE,IF('1_Survey'!F65="N/A",10,IF('1_Survey'!F65="Zero",0,IF('1_Survey'!F65="Zero-Low",0.16,IF('1_Survey'!F65="Low",0.33,IF('1_Survey'!F65="Low-Average",0.45,IF('1_Survey'!F65="Average",0.66,IF('1_Survey'!F65="Average-High",0.82,1))))))),"Not Filled") -> Not Filled | N47: 0 | O47: 0 | P47: 0 | T47: 0 | U47: 1 | W47: =IF(G47="-",'4_DataSlave'!$K$2*Q47*-1,'4_DataSlave'!$K$2*Q47) ->  | X47: =IF(I47="-",'4_DataSlave'!$K$3*R47*-1,'4_DataSlave'!$K$3*R47) ->  | Y47: =IF(K47="-",'4_DataSlave'!$K$4*S47*-1,'4_DataSlave'!$K$4*S47) ->  | AD47: 0 | AE47: 0 | AF47: 0 | AG47: 0 | AL47: 0 | AM47: 1 | AS47: Electrical | AT47: Electrical | AU47: 0
A48: Module 3 - INFRASTRUCTURE | B48: INFRASTRUCTURE | C48: Self-sufficiency | D48: Safe disposal of medical waste | E48: Med_waste | F48: ss_waste | G48: ='3_WeightingAssistent'!AJ46 -> + | H48: ='3_WeightingAssistent'!AM46 -> 0.04148148148 | I48: ='3_WeightingAssistent'!AO46 -> + | J48: ='3_WeightingAssistent'!AR46 -> 0 | K48: ='3_WeightingAssistent'!AT46 -> + | L48: ='3_WeightingAssistent'!AW46 -> 0.03240740741 | M48: =IF(ISBLANK('1_Survey'!F66)=FALSE,IF('1_Survey'!F66="N/A",10,IF('1_Survey'!F66="Zero",0,IF('1_Survey'!F66="Zero-Low",0.16,IF('1_Survey'!F66="Low",0.33,IF('1_Survey'!F66="Low-Average",0.45,IF('1_Survey'!F66="Average",0.66,IF('1_Survey'!F66="Average-High",0.82,1))))))),"Not Filled") -> Not Filled | N48: 0 | O48: 0 | P48: 0 | T48: 0 | U48: 1 | W48: =IF(G48="-",'4_DataSlave'!$K$2*Q48*-1,'4_DataSlave'!$K$2*Q48) ->  | X48: =IF(I48="-",'4_DataSlave'!$K$3*R48*-1,'4_DataSlave'!$K$3*R48) ->  | Y48: =IF(K48="-",'4_DataSlave'!$K$4*S48*-1,'4_DataSlave'!$K$4*S48) ->  | AD48: 0 | AE48: 0 | AF48: 0 | AG48: 0 | AL48: 0 | AM48: 1 | AS48: Med_waste | AT48: Med_waste | AU48: 0
A49: Module 3 - INFRASTRUCTURE | B49: INFRASTRUCTURE | C49: Self-sufficiency | D49: Safety of sewage disposal | E49: Sewage | F49: ss_sewag | G49: ='3_WeightingAssistent'!AJ47 -> + | H49: ='3_WeightingAssistent'!AM47 -> 0.01037037037 | I49: ='3_WeightingAssistent'!AO47 -> + | J49: ='3_WeightingAssistent'!AR47 -> 0 | K49: ='3_WeightingAssistent'!AT47 -> + | L49: ='3_WeightingAssistent'!AW47 -> 0.01080246914 | M49: =IF(ISBLANK('1_Survey'!F67)=FALSE,IF('1_Survey'!F67="N/A",10,IF('1_Survey'!F67="Zero",0,IF('1_Survey'!F67="Zero-Low",0.16,IF('1_Survey'!F67="Low",0.33,IF('1_Survey'!F67="Low-Average",0.45,IF('1_Survey'!F67="Average",0.66,IF('1_Survey'!F67="Average-High",0.82,1))))))),"Not Filled") -> Not Filled | N49: 0 | O49: 0 | P49: 0 | T49: 0 | U49: 1 | W49: =IF(G49="-",'4_DataSlave'!$K$2*Q49*-1,'4_DataSlave'!$K$2*Q49) ->  | X49: =IF(I49="-",'4_DataSlave'!$K$3*R49*-1,'4_DataSlave'!$K$3*R49) ->  | Y49: =IF(K49="-",'4_DataSlave'!$K$4*S49*-1,'4_DataSlave'!$K$4*S49) ->  | AD49: 0 | AE49: 0 | AF49: 0 | AG49: 0 | AL49: 0 | AM49: 1 | AS49: Sewage | AT49: Sewage | AU49: 0
A50: Module 3 - INFRASTRUCTURE | B50: INFRASTRUCTURE | C50: Self-sufficiency | D50: Safety of dead body evacuation | E50: Dead | F50: ss_dead | G50: ='3_WeightingAssistent'!AJ48 -> + | H50: ='3_WeightingAssistent'!AM48 -> 0.01037037037 | I50: ='3_WeightingAssistent'!AO48 -> + | J50: ='3_WeightingAssistent'!AR48 -> 0 | K50: ='3_WeightingAssistent'!AT48 -> + | L50: ='3_WeightingAssistent'!AW48 -> 0.02160493827 | M50: =IF(ISBLANK('1_Survey'!F68)=FALSE,IF('1_Survey'!F68="N/A",10,IF('1_Survey'!F68="Zero",0,IF('1_Survey'!F68="Zero-Low",0.16,IF('1_Survey'!F68="Low",0.33,IF('1_Survey'!F68="Low-Average",0.45,IF('1_Survey'!F68="Average",0.66,IF('1_Survey'!F68="Average-High",0.82,1))))))),"Not Filled") -> Not Filled | N50: 0 | O50: 0 | P50: 0 | T50: 0 | U50: 1 | W50: =IF(G50="-",'4_DataSlave'!$K$2*Q50*-1,'4_DataSlave'!$K$2*Q50) ->  | X50: =IF(I50="-",'4_DataSlave'!$K$3*R50*-1,'4_DataSlave'!$K$3*R50) ->  | Y50: =IF(K50="-",'4_DataSlave'!$K$4*S50*-1,'4_DataSlave'!$K$4*S50) ->  | AD50: 0 | AE50: 0 | AF50: 0 | AG50: 0 | AL50: 0 | AM50: 1 | AS50: Dead | AT50: Dead | AU50: 0
H51: =SUM(H8:H50) -> 1 | J51: =SUM(J8:J50) -> 1 | L51: =SUM(L8:L50) -> 1 | M51: =COUNT(M8:M50)-COUNTIF(M8:M50,"=10") -> 0 | N51: =SUM(N8:N50) -> 0 | O51: 0 | P51: 0 | AC51: =SUM(AC8:AC50) ->  | AK51: =SUM(AK8:AK50) ->  | AL51: =IF(AK51/AE54<0,0,AK51/AE54) -> 
B52: =ISBLANK('1_Survey'!F41) -> TRUE | N52: =N51/$M$51 ->  | O52: =O51/$M$51 ->  | P52: =P51/$M$51 ->  | AD52: Exp (int) | AE52: =SUMIF(AD8:AF50,"<0") -> 0 | AL52: Preparedness: Overall
AD53: Exposure (ext) | AE53: =SUMIF(AG8:AG50,"<0") -> 0
AD54: Vulnerability | AE54: =AC51+AE53 ->  | AL54: =SUM(AH8:AH50) ->  | AM54: =1-AL54 -> 
AD55: Net Vulnerability | AE55: =(AE54-AK51)*-1 ->  | AL55: Preparedness: Bombing
AD56: Tot vulnerability | AE56: =-1*AE54 -> 
AL57: =SUM(AI8:AI50) ->  | AM57: =1-AL57 -> 
AD58: Hazards: assessed likelihood | AL58: Preparedness: Intrusion
AD60: =E2 -> Bombing | AE60: =$K2 ->  | AL60: =SUM(AJ8:AJ50) ->  | AM60: =1-AL60 -> 
A61: No N/a | B61: Low | C61: Average | D61: High | E61: Zero | AD61: =E3 -> Intrusion | AE61: =$K3 ->  | AL61: Preparedness: MIW
A62: No Zero | B62: Low | C62: Average | D62: High | E62: N/A | AD62: =E4 -> MIP | AE62: =$K4 -> 
A63: No Zero or N/A | B63: Low | C63: Average | D63: High
A64: All | B64: Low | C64: Average | D64: High | E64: Zero | F64: N/A | AE64: Management | AG64: Infrastructure
A65: Spread | B65: Spread layout (campus like) | C65: Medium concentrated layout | D65: Concentrated layout | AD65: Preparedness Domain | AE65: =IF(SUM(AK8:AK24)/SUM($AC$8:$AC$24)<0,0,SUM(AK8:AK24)/SUM($AC$8:$AC$24)) ->  | AG65: =IF(SUM($AK$25:$AK$50)/SUM($AC$25:$AC$50)<0,0,SUM($AK$25:$AK$50)/SUM($AC$25:$AC$50)) -> 
A66: No N/a | B66: Zero | C66: Zero-Low | D66: Low | E66: Low-Average | F66: Average | G66: Average-High | H66: High
A67: No Zero | B67: Low | C67: Low-Average | D67: Average | E67: Average-High | F67: High | G67: N/A | AD67: Exposure vs. Hazards level | AG67: Exposure | AH67: Hazard level
A68: No Zero or N/A | B68: Low | C68: Low-Average | D68: Average | E68: Average-High | F68: High | AD68: Context related | AG68: =SUM(AG71:AG73)/3 ->  | AH68: =SUM($AG$75:$AG$77)/3 -> 0
A69: All | B69: Zero | C69: Zero-Low | D69: Low | E69: Low-Average | F69: Average | G69: Average-High | H69: High | I69: N/A
AD70: Exposure Thresholds
AD71: Avg-High | AE71: 0.95 | AF71: =IF($AE$54>=$AE$71,($AE$54-$AE$71)/(1-$AE$71),0) ->  | AG71: =IF($AE$54>=$AE$71,2+$AF$71,0) -> 
AD72: Low-Avg | AE72: 0.85 | AF72: =IF(AND($AE$54>=$AE$72,$AE$54<$AE$71),($AE$54-$AE$72)/($AE$71-$AE$72),0) ->  | AG72: =IF(AF72<>0,1+$AF$72,0) -> 
AF73: =IF($AE$54<$AE$72,$AE$54/$AE$72,0) ->  | AG73: =IF(AF73<>0,$AF$73,0) -> 
AA74: Abs Hazard Level | AD74: Hazards Level Thresholds
AA75: =SUM($V$2:$V$4) -> 0 | AD75: Avg-High | AE75: 6 | AG75: =IF($AA$75>=$AE$75,2+($AA$75-$AE$75)/3,0) -> 0
AD76: Low-Avg | AE76: 2 | AG76: =IF(AND($AA$75<$AE$75,$AA$75>=$AE$76),1+($AA$75-$AE$76)/($AE$75-$AE$76),0) -> 0
AG77: =IF($AA$75<$AE$76,$AA$75/$AE$76,0) -> 0
